Workbook

Sheet Cinema, voice alarm
A1: Cinema - Voice alarm
A2: Individual | B2: Recognition | C2: Response | D2: Total pre-movement time
A3: Person 1 | B3: 15 | C3: 24 | D3: =B3+C3 -> 39
A4: Person 2 | B4: 24 | C4: 15 | D4: =B4+C4 -> 39
A5: Person 3 | B5: 17 | C5: 24 | D5: 41
A6: Person 4 | B6: 20 | C6: 23 | D6: 43
A7: Person 5 | B7: 14 | C7: 14 | D7: 28
A8: Person 6 | B8: 17 | C8: 11 | D8: 28
A9: Person 7 | B9: 20 | C9: 31 | D9: 51
A10: Person 8 | B10: 20 | C10: 22 | D10: 42
A11: Person 9 | B11: 13 | C11: 14 | D11: 27
A12: Person 10 | B12: 20 | C12: 25 | D12: 45
A13: Person 11 | B13: 18 | C13: 29 | D13: 47
A14: Person 12 | B14: 21 | C14: 20 | D14: =B14+C14 -> 41
A15: Person 13 | B15: 21 | C15: 21 | D15: =B15+C15 -> 42
A16: Person 14 | B16: 20 | C16: 12 | D16: 32
A17: Person 15 | B17: 16 | C17: 16 | D17: 32
A18: Person 16 | B18: 17 | C18: 3 | D18: 20
A19: Person 17 | B19: 15 | C19: 5 | D19: 20
A20: Person 18 | B20: 12 | C20: 12 | D20: 24
A21: Person 19 | B21: 15 | C21: 19 | D21: =B21+C21 -> 34
A22: Person 20 | B22: 21 | C22: 20 | D22: =B22+C22 -> 41
A23: Person 21 | B23: 18 | C23: 23 | D23: 41
A24: Person 22 | B24: 23 | C24: 21 | D24: 44
A25: Person 23 | B25: 13 | C25: 18 | D25: 31
A26: Person 24 | B26: 14 | C26: 24 | D26: 38
A27: Person 25 | B27: 32 | C27: 5 | D27: 37
A28: Person 26 | B28: 39 | C28: 4 | D28: 43
A29: Person 27 | B29: 39 | C29: 6 | D29: 45
A30: Person 28 | B30: 38 | C30: 3 | D30: 41
A31: Person 29 | B31: 38 | C31: 7 | D31: 45
A32: Person 30 | B32: 38 | C32: 6 | D32: 44
A33: Person 31 | B33: 36 | C33: 8 | D33: 44
A34: Person 32 | B34: 35 | C34: 9 | D34: 44
A35: Person 33 | B35: 39 | C35: 6 | D35: 45
A36: Person 34 | B36: 38 | C36: 10 | D36: 48
A37: Person 35 | B37: 28 | C37: 7 | D37: 35
A38: Person 36 | B38: 19 | C38: 5 | D38: =B38+C38 -> 24
A39: Person 37 | B39: 19 | C39: 4 | D39: =B39+C39 -> 23
A40: Person 38 | B40: 20 | C40: 8 | D40: 28
A41: Person 39 | B41: 21 | C41: 27 | D41: 48
A42: Person 40 | B42: 22 | C42: 20 | D42: 42
A43: Person 41 | B43: 22 | C43: 18 | D43: 40
A44: Person 42 | B44: 17 | C44: 10 | D44: 27
A45: Person 43 | B45: 16 | C45: 10 | D45: 26
A46: Person 44 | B46: 14 | C46: 6 | D46: 20
A47: Person 45 | B47: 20 | C47: 4 | D47: 24
A48: Person 46 | B48: 17 | C48: 11 | D48: =B48+C48 -> 28
A49: Person 47 | B49: 17 | C49: 13 | D49: =B49+C49 -> 30
A50: Person 48 | B50: 19 | C50: 11 | D50: 30
A51: Person 49 | B51: 16 | C51: 5 | D51: 21
A52: Person 50 | B52: 34 | C52: 9 | D52: 43
A53: Person 51 | B53: 35 | C53: 7 | D53: 42
A54: Person 52 | B54: 16 | C54: 18 | D54: 34
A55: Person 53 | B55: 17 | C55: 19 | D55: 36
A56: Person 54 | B56: 20 | C56: 16 | D56: 36
A57: Person 55 | B57: 21 | C57: 12 | D57: 33
A58: Person 56 | B58: 122 | C58: 14 | D58: =B58+C58 -> 136
A59: Person 57 | B59: 122 | C59: 15 | D59: =B59+C59 -> 137
A60: Person 58 | B60: 123 | C60: 9 | D60: 132
A61: Person 59 | B61: 123 | C61: 8 | D61: 131
A62: Person 60 | B62: 121 | C62: 5 | D62: 126
A63: Person 61 | B63: 116 | C63: 6 | D63: 122
A64: Person 62 | B64: 106 | C64: 15 | D64: 121
A65: Person 63 | B65: 106 | C65: 8 | D65: 114
A66: Person 64 | B66: 106 | C66: 8 | D66: 114
A67: Person 65 | B67: 117 | C67: 1 | D67: 118
A68: Person 66 | B68: 119 | C68: 3 | D68: 122
A69: Person 67 | B69: 121 | C69: 1 | D69: 122
A70: Person 68 | B70: 116 | C70: 4 | D70: 120
A71: Person 69 | B71: 34 | C71: 1 | D71: 35
A72: Person 70 | B72: 123 | C72: 15 | D72: 138
A73: Person 71 | B73: 120 | C73: 16 | D73: 136
A74: Person 72 | B74: 94 | C74: 1 | D74: 95
A75: Person 73 | B75: 95 | C75: 17 | D75: =B75+C75 -> 112
A76: Person 74 | B76: 90 | C76: 14 | D76: =B76+C76 -> 104
A77: Person 75 | B77: 90 | C77: 10 | D77: 100
A78: Person 76 | B78: 89 | C78: 6 | D78: 95
A79: Person 77 | B79: 90 | C79: 6 | D79: 96
A80: Person 78 | B80: 87 | C80: 9 | D80: 96
A81: Person 79 | B81: 88 | C81: 7 | D81: 95
A82: Person 80 | B82: 93 | C82: 2 | D82: 95
A83: Person 81 | B83: 89 | C83: 5 | D83: 94
A84: Person 82 | B84: 87 | C84: 14 | D84: 101
A85: Person 83 | B85: 91 | C85: 11 | D85: 102
A86: Person 84 | B86: 88 | C86: 10 | D86: 98
A87: Person 85 | B87: 80 | C87: 13 | D87: 93
A88: Person 86 | B88: 90 | C88: 4 | D88: 94
A89: Person 87 | B89: 91 | C89: 6 | D89: 97
A90: Person 88 | B90: 92 | C90: 8 | D90: 100
A91: Person 89 | B91: 94 | C91: 5 | D91: 99
A92: Person 90 | B92: 91 | C92: 14 | D92: 105
A93: Person 91 | B93: 91 | C93: 19 | D93: 110
A94: Person 92 | B94: 91 | C94: 2 | D94: 93
A95: Person 93 | B95: 93 | C95: 7 | D95: 100
A96: Person 94 | B96: 92 | C96: 3 | D96: 95
A97: Person 95 | B97: 91 | C97: 8 | D97: 99
A98: Person 96 | B98: 91 | C98: 7 | D98: 98
A99: Person 97 | B99: 89 | C99: 1 | D99: 90
A100: Person 98 | B100: 89 | C100: 5 | D100: 94
A101: Person 99 | B101: 90 | C101: 5 | D101: 95
A102: Person 100 | B102: 91 | C102: 3 | D102: 94
A103: Person 101 | B103: 91 | C103: 2 | D103: 93
A104: Person 102 | B104: 38 | C104: 17 | D104: =B104+C104 -> 55
A105: Person 103 | B105: 43 | C105: 12 | D105: =B105+C105 -> 55
A106: Person 104 | B106: 38 | C106: 5 | D106: 43
A107: Person 105 | B107: 36 | C107: 6 | D107: 42
A108: Person 106 | B108: 53 | C108: 6 | D108: 59
A109: Person 107 | B109: 33 | C109: 25 | D109: 58
A110: Person 108 | B110: 36 | C110: 16 | D110: 52
A111: Person 109 | B111: 36 | C111: 15 | D111: 51
A112: Person 110 | B112: 34 | C112: 16 | D112: 50
A113: Person 111 | B113: 33 | C113: 15 | D113: 48
A114: Person 112 | B114: 36 | C114: 11 | D114: 47
A115: Person 113 | B115: 30 | C115: 7 | D115: 37
A116: Person 114 | B116: 36 | C116: 4 | D116: 40
A117: Person 115 | B117: 36 | C117: 9 | D117: 45
A118: Person 116 | B118: 43 | C118: 4 | D118: 47
A119: Person 117 | B119: 55 | C119: 4 | D119: 59
A120: Person 118 | B120: 52 | C120: 5 | D120: 57
A121: Person 119 | B121: 52 | C121: 1 | D121: 53
A122: Person 120 | B122: 52 | C122: 1 | D122: 53
A123: Person 121 | B123: 37 | C123: 40 | D123: =B123+C123 -> 77
A124: Person 122 | B124: 25 | C124: 22 | D124: =B124+C124 -> 47
A125: Person 123 | B125: 32 | C125: 16 | D125: 48
A126: Person 124 | B126: 29 | C126: 19 | D126: 48
A127: Person 125 | B127: 29 | C127: 21 | D127: 50
A128: Person 126 | B128: 30 | C128: 13 | D128: 43
A129: Person 127 | B129: 27 | C129: 16 | D129: 43
A130: Person 128 | B130: 26 | C130: 13 | D130: 39
A131: Person 129 | B131: 26 | C131: 15 | D131: 41
A132: Person 130 | B132: 27 | C132: 17 | D132: 44
A133: Person 131 | B133: 25 | C133: 20 | D133: 45
A134: Person 132 | B134: 29 | C134: 22 | D134: 51
A135: Person 133 | B135: 27 | C135: 24 | D135: 51
A136: Person 134 | B136: 30 | C136: 14 | D136: 44
A137: Person 135 | B137: 26 | C137: 16 | D137: 42
A138: Person 136 | B138: 34 | C138: 8 | D138: 42
A139: Person 137 | B139: 33 | C139: 14 | D139: 47
A140: Person 138 | B140: 31 | C140: 23 | D140: 54
A141: Person 139 | B141: 27 | C141: 27 | D141: 54
A142: Person 140 | B142: 27 | C142: 33 | D142: 60
A143: Person 141 | B143: 48 | C143: 18 | D143: 66
A144: Person 142 | B144: 44 | C144: 11 | D144: 55
A145: Person 143 | B145: 35 | C145: 20 | D145: 55
A146: Person 144 | B146: 32 | C146: 16 | D146: 48
A147: Person 145 | B147: 22 | C147: 10 | D147: 32
A148: Person 146 | B148: 21 | C148: 9 | D148: 30
A149: Person 147 | B149: 30 | C149: 22 | D149: 52
A150: Person 148 | B150: 30 | C150: 22 | D150: 52
A151: Person 149 | B151: 20 | C151: 6 | D151: 26
A152: Person 150 | B152: 22 | C152: 5 | D152: 27
A153: Person 151 | B153: 26 | C153: 13 | D153: 39
A154: Person 152 | B154: 25 | C154: 13 | D154: 38
A155: Person 153 | B155: 24 | C155: 12 | D155: 36
A156: Person 154 | B156: 30 | C156: 17 | D156: 47
A157: Person 155 | B157: 26 | C157: 24 | D157: 50
A158: Person 156 | B158: 25 | C158: 17 | D158: 42
A159: Person 157 | B159: 36 | C159: 13 | D159: 49
A160: Person 158 | B160: 14 | C160: 42 | D160: 56
A161: Person 159 | B161: 26 | C161: 30 | D161: 56
A162: Person 160 | B162: 31 | C162: 11 | D162: 42
A163: Person 161 | B163: 29 | C163: 12 | D163: 41
A164: Person 162 | B164: 29 | C164: 12 | D164: 41
A165: Person 163 | B165: 30 | C165: 20 | D165: 50
A166: Person 164 | B166: 25 | C166: 7 | D166: 32
A167: Person 165 | B167: 24 | C167: 7 | D167: 31
A168: Person 166 | B168: 22 | C168: 4 | D168: 26
A169: Person 167 | B169: 24 | C169: 2 | D169: 26
A170: Person 168 | B170: 19 | C170: 7 | D170: 26
A171: Person 169 | B171: 21 | C171: 5 | D171: 26
A172: Person 170 | B172: 29 | C172: 17 | D172: 46
A173: Person 171 | B173: 28 | C173: 18 | D173: 46
A174: Person 172 | B174: 30 | C174: 16 | D174: 46
A175: Person 173 | B175: 29 | C175: 29 | D175: 58
A176: Person 174 | B176: 29 | C176: 29 | D176: 58
A177: Person 175 | B177: 24 | C177: 14 | D177: 38
A178: Person 176 | B178: 24 | C178: 15 | D178: 39
A179: Person 177 | B179: 22 | C179: 15 | D179: 37
A180: Person 178 | B180: 22 | C180: 22 | D180: 44
A181: Person 179 | B181: 27 | C181: 24 | D181: 51
A182: Person 180 | B182: 25 | C182: 16 | D182: 41
A183: Person 181 | B183: 24 | C183: 16 | D183: 40
A184: Person 182 | B184: 21 | C184: 19 | D184: 40
A185: Person 183 | B185: 22 | C185: 27 | D185: 49
A186: Person 184 | B186: 21 | C186: 9 | D186: 30
A187: Person 185 | B187: 26 | C187: 21 | D187: 47
A188: Person 186 | B188: 35 | C188: 7 | D188: =B188+C188 -> 42
A189: Person 187 | B189: 25 | C189: 17 | D189: 42
A190: Person 188 | B190: 28 | C190: 16 | D190: 44
A191: Person 189 | B191: 25 | C191: 19 | D191: 44
A192: Person 190
A193: Person 191
A194: Person 192 | B194: 52 | C194: 14 | D194: 66
A195: Person 193 | B195: 29 | C195: 35 | D195: 64
A196: Person 194 | B196: 25 | C196: 23 | D196: 48
A197: Person 195 | B197: 25 | C197: 23 | D197: 48
A198: Person 196 | B198: 22 | C198: 10 | D198: 32
A199: Person 197 | B199: 25 | C199: 22 | D199: 47
A200: Person 198 | B200: 26 | C200: 18 | D200: 44
... 702 more rows

Sheet Cinema, siren
A1: Cinema - Siren
A2: Individual | B2: Recognition | C2: Response | D2: Total pre-movement time
A3: Person 1 | B3: 16 | C3: 8 | D3: 24
A4: Person 2 | B4: 18 | C4: 17 | D4: 35
A5: Person 3 | B5: 16 | C5: 8 | D5: 24
A6: Person 4 | B6: 18 | C6: 6 | D6: 24
A7: Person 5 | B7: 25 | C7: 16 | D7: 41
A8: Person 6 | B8: 18 | C8: 10 | D8: 28
A9: Person 7 | B9: 15 | C9: 4 | D9: 19
A10: Person 8 | B10: 14 | C10: 4 | D10: 18
A11: Person 9 | B11: 15 | C11: 3 | D11: 18
A12: Person 10 | B12: 14 | C12: 7 | D12: 21
A13: Person 11 | B13: 16 | C13: 9 | D13: 25
A14: Person 12 | B14: 18 | C14: 9 | D14: 27
A15: Person 13 | B15: 17 | C15: 10 | D15: 27
A16: Person 14 | B16: 14 | C16: 16 | D16: 30
A17: Person 15 | B17: 16 | C17: 18 | D17: 34
A18: Person 16 | B18: 20 | C18: 14 | D18: 34
A19: Person 17 | B19: 19 | C19: 8 | D19: 27
A20: Person 18 | B20: 20 | C20: 5 | D20: 25
A21: Person 19 | B21: 12 | C21: 10 | D21: 22
A22: Person 20 | B22: 19 | C22: 7 | D22: 26
A23: Person 21 | B23: 16 | C23: 9 | D23: 25
A24: Person 22 | B24: 14 | C24: 11 | D24: 25
A25: Person 23 | B25: 11 | C25: 14 | D25: 25
A26: Person 24 | B26: 12 | C26: 7 | D26: 19
A27: Person 25 | B27: 12 | C27: 7 | D27: 19
A28: Person 26 | B28: 10 | C28: 9 | D28: 19
A29: Person 27 | B29: 14 | C29: 5 | D29: 19
A30: Person 28 | B30: 14 | C30: 6 | D30: 20
A31: Person 29 | B31: 15 | C31: 6 | D31: 21
A32: Person 30 | B32: 14 | C32: 10 | D32: 24
A33: Person 31 | B33: 11 | C33: 14 | D33: 25
A34: Person 32 | B34: 16 | C34: 9 | D34: 25
A35: Person 33 | B35: 8 | C35: 14 | D35: 22
A36: Person 34 | B36: 13 | C36: 9 | D36: 22
A37: Person 35 | B37: 13 | C37: 11 | D37: 24
A38: Person 36 | B38: 14 | C38: 11 | D38: 25
A39: Person 37 | B39: 15 | C39: 9 | D39: 24
A40: Person 38 | B40: 14 | C40: 19 | D40: 33
A41: Person 39 | B41: 14 | C41: 17 | D41: 31
A42: Person 40 | B42: 20 | C42: 9 | D42: 29
A43: Person 41 | B43: 17 | C43: 8 | D43: 25
A44: Person 42 | B44: 20 | C44: 5 | D44: 25
A45: Person 43 | B45: 16 | C45: 15 | D45: 31
A46: Person 44 | B46: 15 | C46: 19 | D46: 34
A47: Person 45 | B47: 15 | C47: 13 | D47: 28
A48: Person 46 | B48: 14 | C48: 6 | D48: 20
A49: Person 47 | B49: 14 | C49: 4 | D49: 18
A50: Person 48 | B50: 12 | C50: 9 | D50: 21
A51: Person 49 | B51: 13 | C51: 9 | D51: 22
A52: Person 50 | B52: 17 | C52: 5 | D52: 22
A53: Person 51 | B53: 14 | C53: 10 | D53: 24
A54: Person 52 | B54: 17 | C54: 7 | D54: 24
A55: Person 53 | B55: 17 | C55: 3 | D55: 20
A56: Person 54 | B56: 16 | C56: 4 | D56: 20
A57: Person 55 | B57: 16 | C57: 4 | D57: 20
A58: Person 56 | B58: 17 | C58: 4 | D58: 21
A59: Person 57 | B59: 12 | C59: 3 | D59: 15
A60: Person 58 | B60: 15 | C60: 2 | D60: 17
A61: Person 59 | B61: 15 | C61: 4 | D61: 19
A62: Person 60 | B62: 13 | C62: 5 | D62: 18
A63: Person 61 | B63: 12 | C63: 6 | D63: 18
A64: Person 62 | B64: 10 | C64: 10 | D64: 20
A65: Person 63 | B65: 14 | C65: 5 | D65: 19
A66: Person 64 | B66: 15 | C66: 4 | D66: 19
A67: Person 65 | B67: 15 | C67: 4 | D67: 19
A68: Person 66 | B68: 14 | C68: 4 | D68: 18
A69: Person 67 | B69: 13 | C69: 11 | D69: 24
A70: Person 68 | B70: 16 | C70: 7 | D70: 23
A71: Person 69 | B71: 16 | C71: 2 | D71: 18
A72: Person 70 | B72: 16 | C72: 9 | D72: 25
A73: Person 71 | B73: 39 | C73: 5 | D73: 44
A74: Person 72 | B74: 38 | C74: 6 | D74: 44
A75: Person 73 | B75: 37 | C75: 4 | D75: 41
A76: Person 74 | B76: 35 | C76: 5 | D76: 40
A77: Person 75 | B77: 28 | C77: 9 | D77: 37
A78: Person 76 | B78: 17 | C78: 9 | D78: 26
A79: Person 77 | B79: 17 | C79: 13 | D79: 30
A80: Person 78 | B80: 20 | C80: 10 | D80: 30
A81: Person 79 | B81: 18 | C81: 5 | D81: 23
A82: Person 80 | B82: 32 | C82: 4 | D82: 36
A83: Person 81 | B83: 21 | C83: 15 | D83: 36
A84: Person 82 | B84: 10 | C84: 4 | D84: 14
A85: Person 83 | B85: 15 | C85: 3 | D85: 18
A86: Person 84 | B86: 15 | C86: 3 | D86: 18
A87: Person 85 | B87: 21 | C87: 6 | D87: 27
A88: Person 86 | B88: 20 | C88: 6 | D88: 26
A89: Person 87 | B89: 21 | C89: 8 | D89: 29
A90: Person 88 | B90: 20 | C90: 5 | D90: 25
A91: Person 89 | B91: 22 | C91: 6 | D91: 28
A92: Person 90 | B92: 177 | C92: 2 | D92: =B92+C92 -> 179
A93: Person 91 | B93: 177 | C93: 1 | D93: =B93+C93 -> 178
A94: Person 92 | B94: 177 | C94: 1 | D94: =B94+C94 -> 178

Sheet Cinema, alarm bell
A1: Cinema - Alarm bell
A2: Individual | B2: Recognition | C2: Response | D2: Total pre-movement time
A3: Person 1 | B3: 5 | C3: 25 | D3: 30
A4: Person 2 | B4: 5 | C4: 15 | D4: 20
A5: Person 3 | B5: 7 | C5: 12 | D5: 19
A6: Person 4 | B6: 5 | C6: 17 | D6: 22
A7: Person 5 | B7: 6 | C7: 12 | D7: 18
A8: Person 6 | B8: 5 | C8: 14 | D8: 19
A9: Person 7 | B9: 5 | C9: 15 | D9: 20
A10: Person 8 | B10: 6 | C10: 15 | D10: 21
A11: Person 9 | B11: 6 | C11: 11 | D11: 17
A12: Person 10 | B12: 6 | C12: 12 | D12: 18
A13: Person 11 | B13: 22 | C13: 5 | D13: 27
A14: Person 12 | B14: 11 | C14: 16 | D14: 27
A15: Person 13 | B15: 14 | C15: 13 | D15: 27
A16: Person 14 | B16: 10 | C16: 17 | D16: 27
A17: Person 15 | B17: 8 | C17: 9 | D17: 17
A18: Person 16 | B18: 9 | C18: 10 | D18: 19
A19: Person 17 | B19: 9 | C19: 11 | D19: 20
A20: Person 18 | B20: 23 | C20: 2 | D20: 25
A21: Person 19 | B21: 8 | C21: 16 | D21: 24
A22: Person 20 | B22: 8 | C22: 15 | D22: 23
A23: Person 21 | B23: 10 | C23: 7 | D23: 17
A24: Person 22 | B24: 11 | C24: 6 | D24: 17
A25: Person 23 | B25: 9 | C25: 7 | D25: 16
A26: Person 24 | B26: 7 | C26: 9 | D26: 16
A27: Person 25 | B27: 10 | C27: 20 | D27: 30
A28: Person 26 | B28: 24 | C28: 4 | D28: 28
A29: Person 27 | B29: 13 | C29: 12 | D29: 25
A30: Person 28 | B30: 12 | C30: 12 | D30: 24
A31: Person 29 | B31: 12 | C31: 9 | D31: 21
A32: Person 30 | B32: 11 | C32: 11 | D32: 22
A33: Person 31 | B33: 11 | C33: 10 | D33: 21
A34: Person 32 | B34: 10 | C34: 10 | D34: 20
A35: Person 33 | B35: 10 | C35: 11 | D35: 21
A36: Person 34 | B36: 9 | C36: 10 | D36: 19
A37: Person 35 | B37: 12 | C37: 11 | D37: 23
A38: Person 36 | B38: 14 | C38: 11 | D38: 25
A39: Person 37 | B39: 16 | C39: 15 | D39: 31
A40: Person 38 | B40: 16 | C40: 15 | D40: 31
A41: Person 39 | B41: 16 | C41: 15 | D41: 31
A42: Person 40 | B42: 14 | C42: 12 | D42: 26
A43: Person 41 | B43: 13 | C43: 8 | D43: 21
A44: Person 42 | B44: 13 | C44: 7 | D44: 20
A45: Person 43 | B45: 11 | C45: 6 | D45: 17
A46: Person 44 | B46: 11 | C46: 6 | D46: 17
A47: Person 45 | B47: 12 | C47: 8 | D47: 20
A48: Person 46 | B48: 11 | C48: 7 | D48: 18
A49: Person 47 | B49: 13 | C49: 12 | D49: 25
A50: Person 48 | B50: 11 | C50: 14 | D50: 25
A51: Person 49 | B51: 12 | C51: 11 | D51: 23
A52: Person 50 | B52: 10 | C52: 17 | D52: 27
A53: Person 51 | B53: 12 | C53: 15 | D53: 27
A54: Person 52 | B54: 29 | C54: 2 | D54: 31
A55: Person 53 | B55: 27 | C55: 4 | D55: 31
A56: Person 54 | B56: 14 | C56: 16 | D56: 30
A57: Person 55 | B57: 27 | C57: 3 | D57: 30
A58: Person 56 | B58: 10 | C58: 11 | D58: 21
A59: Person 57 | B59: 11 | C59: 10 | D59: 21
A60: Person 58 | B60: 10 | C60: 9 | D60: 19
A61: Person 59 | B61: 10 | C61: 31 | D61: 41
A62: Person 60 | B62: 11 | C62: 37 | D62: 48
A63: Person 61 | B63: 10 | C63: 39 | D63: 49
A64: Person 62 | B64: 10 | C64: 16 | D64: 26
A65: Person 63 | B65: 12 | C65: 15 | D65: 27
A66: Person 64 | B66: 12 | C66: 14 | D66: 26
A67: Person 65 | B67: 12 | C67: 12 | D67: 24
A68: Person 66 | B68: 21 | C68: 4 | D68: 25
A69: Person 67 | B69: 21 | C69: 6 | D69: 27
A70: Person 68 | B70: 13 | C70: 15 | D70: 28
A71: Person 69 | B71: 13 | C71: 14 | D71: 27
A72: Person 70 | B72: 12 | C72: 8 | D72: 20
A73: Person 71 | B73: 12 | C73: 10 | D73: 22
A74: Person 72 | B74: 13 | C74: 10 | D74: 23
A75: Person 73 | B75: 12 | C75: 19 | D75: 31
A76: Person 74 | B76: 13 | C76: 9 | D76: 22
A77: Person 75 | B77: 11 | C77: 6 | D77: 17
A78: Person 76 | B78: 11 | C78: 6 | D78: 17
A79: Person 77 | B79: 12 | C79: 23 | D79: 35
A80: Person 78 | B80: 15 | C80: 20 | D80: 35
A81: Person 79 | B81: 24 | C81: 22 | D81: 46
A82: Person 80 | B82: 12 | C82: 32 | D82: 44
A83: Person 81 | B83: 11 | C83: 9 | D83: 20
A84: Person 82 | B84: 11 | C84: 9 | D84: 20
A85: Person 83 | B85: 12 | C85: 7 | D85: 19
A86: Person 84 | B86: 16 | C86: 6 | D86: 22
A87: Person 85 | B87: 14 | C87: 9 | D87: 23
A88: Person 86 | B88: 13 | C88: 10 | D88: 23
A89: Person 87 | B89: 13 | C89: 8 | D89: 21
A90: Person 88 | B90: 16 | C90: 7 | D90: 23
A91: Person 89 | B91: 13 | C91: 11 | D91: 24
A92: Person 90 | B92: 12 | C92: 10 | D92: 22
A93: Person 91 | B93: 17 | C93: 14 | D93: 31
A94: Person 92 | B94: 15 | C94: 19 | D94: 34
A95: Person 93 | B95: 13 | C95: 7 | D95: 20
A96: Person 94 | B96: 13 | C96: 7 | D96: 20
A97: Person 95 | B97: 13 | C97: 6 | D97: 19
A98: Person 96 | B98: 13 | C98: 8 | D98: 21
A99: Person 97 | B99: 38 | C99: 10 | D99: 48
A100: Person 98 | B100: 24 | C100: 14 | D100: 38
A101: Person 99 | B101: 39 | C101: 5 | D101: 44
A102: Person 100 | B102: 18 | C102: 19 | D102: 37
A103: Person 101 | B103: 16 | C103: 21 | D103: 37
A104: Person 102 | B104: 16 | C104: 13 | D104: 29
A105: Person 103 | B105: 13 | C105: 16 | D105: 29
A106: Person 104 | B106: 13 | C106: 18 | D106: 31
A107: Person 105 | B107: 14 | C107: 18 | D107: 32
A108: Person 106 | B108: 16 | C108: 16 | D108: 32
A109: Person 107 | B109: 13 | C109: 10 | D109: 23
A110: Person 108 | B110: 14 | C110: 8 | D110: 22
A111: Person 109 | B111: 13 | C111: 12 | D111: 25
A112: Person 110 | B112: 38 | C112: 5 | D112: 43
A113: Person 111 | B113: 23 | C113: 5 | D113: 28
A114: Person 112 | B114: 22 | C114: 5 | D114: 27
A115: Person 113 | B115: 23 | C115: 7 | D115: 30
A116: Person 114 | B116: 31 | C116: 2 | D116: 33
A117: Person 115 | B117: 24 | C117: 11 | D117: 35
A118: Person 116 | B118: 24 | C118: 10 | D118: 34
A119: Person 117 | B119: 21 | C119: 15 | D119: 36
A120: Person 118 | B120: 20 | C120: 17 | D120: 37
A121: Person 119 | B121: 19 | C121: 11 | D121: 30
A122: Person 120 | B122: 23 | C122: 9 | D122: 32
A123: Person 121 | B123: 20 | C123: 10 | D123: 30
A124: Person 122 | B124: 19 | C124: 8 | D124: 27
A125: Person 123 | B125: 21 | C125: 10 | D125: 31
A126: Person 124 | B126: 22 | C126: 9 | D126: 31
A127: Person 125 | B127: 23 | C127: 6 | D127: 29
A128: Person 126 | B128: 22 | C128: 5 | D128: 27
A129: Person 127 | B129: 26 | C129: 10 | D129: 36
A130: Person 128 | B130: 28 | C130: 11 | D130: 39
A131: Person 129 | B131: 28 | C131: 15 | D131: 43
A132: Person 130 | B132: 30 | C132: 15 | D132: 45
A133: Person 131 | B133: 22 | C133: 19 | D133: 41
A134: Person 132 | B134: 39 | C134: 3 | D134: 42
A135: Person 133 | B135: 38 | C135: 3 | D135: 41
A136: Person 134 | B136: 38 | C136: 3 | D136: 41
A137: Person 135 | B137: 22 | C137: 8 | D137: 30
A138: Person 136 | B138: 21 | C138: 8 | D138: 29
A139: Person 137 | B139: 20 | C139: 7 | D139: 27
A140: Person 138 | B140: 21 | C140: 6 | D140: 27
A141: Person 139 | B141: 21 | C141: 6 | D141: 27
A142: Person 140 | B142: 22 | C142: 5 | D142: 27
A143: Person 141
A144: Person 142 | B144: 21 | C144: 29 | D144: 50
A145: Person 143 | B145: 20 | C145: 19 | D145: 39
A146: Person 144 | B146: 22 | C146: 16 | D146: 38
A147: Person 145 | B147: 24 | C147: 14 | D147: 38
A148: Person 146 | B148: 29 | C148: 3 | D148: 32
A149: Person 147 | B149: 22 | C149: 10 | D149: 32
A150: Person 148 | B150: 22 | C150: 9 | D150: 31
A151: Person 149 | B151: 23 | C151: 9 | D151: 32
A152: Person 150 | B152: 23 | C152: 6 | D152: 29
A153: Person 151 | B153: 20 | C153: 7 | D153: 27
A154: Person 152 | B154: 21 | C154: 5 | D154: 26
A155: Person 153 | B155: 18 | C155: 6 | D155: 24
A156: Person 154 | B156: 18 | C156: 5 | D156: 23
A157: Person 155 | B157: 22 | C157: 15 | D157: 37
A158: Person 156 | B158: 29 | C158: 9 | D158: 38
A159: Person 157 | B159: 26 | C159: 11 | D159: 37
A160: Person 158 | B160: 21 | C160: 13 | D160: 34
A161: Person 159 | B161: 20 | C161: 16 | D161: 36
A162: Person 160 | B162: 20 | C162: 11 | D162: 31
A163: Person 161 | B163: 22 | C163: 13 | D163: 35
A164: Person 162 | B164: 21 | C164: 11 | D164: 32
A165: Person 163 | B165: 22 | C165: 9 | D165: 31
A166: Person 164 | B166: 19 | C166: 11 | D166: 30
A167: Person 165 | B167: 18 | C167: 8 | D167: 26
A168: Person 166 | B168: 19 | C168: 8 | D168: 27
A169: Person 167 | B169: 17 | C169: 8 | D169: 25
A170: Person 168 | B170: 22 | C170: 5 | D170: 27
A171: Person 169 | B171: 20 | C171: 10 | D171: 30
A172: Person 170 | B172: 27 | C172: 5 | D172: 32
A173: Person 171 | B173: 24 | C173: 6 | D173: 30
A174: Person 172 | B174: 22 | C174: 7 | D174: 29
A175: Person 173 | B175: 24 | C175: 6 | D175: 30
A176: Person 174 | B176: 22 | C176: 7 | D176: 29
A177: Person 175 | B177: 23 | C177: 5 | D177: 28
A178: Person 176 | B178: 19 | C178: 3 | D178: 22
A179: Person 177 | B179: 19 | C179: 3 | D179: 22
A180: Person 178 | B180: 20 | C180: 9 | D180: 29
A181: Person 179 | B181: 21 | C181: 12 | D181: 33
A182: Person 180 | B182: 22 | C182: 8 | D182: 30
A183: Person 181 | B183: 20 | C183: 12 | D183: 32
A184: Person 182 | B184: 24 | C184: 13 | D184: 37
A185: Person 183 | B185: 27 | C185: 10 | D185: 37
A186: Person 184 | B186: 23 | C186: 6 | D186: 29
A187: Person 185 | B187: 23 | C187: 4 | D187: 27
A188: Person 186 | B188: 22 | C188: 6 | D188: 28
A189: Person 187 | B189: 22 | C189: 7 | D189: 29
A190: Person 188 | B190: 22 | C190: 16 | D190: 38
A191: Person 189 | B191: 23 | C191: 16 | D191: 39
A192: Person 190 | B192: 21 | C192: 10 | D192: 31
A193: Person 191 | B193: 23 | C193: 8 | D193: 31
A194: Person 192 | B194: 24 | C194: 18 | D194: 42
A195: Person 193 | B195: 24 | C195: 17 | D195: 41
A196: Person 194 | B196: 20 | C196: 4 | D196: 24
A197: Person 195 | B197: 21 | C197: 3 | D197: 24
A198: Person 196 | B198: 19 | C198: 7 | D198: 26
A199: Person 197 | B199: 22 | C199: 4 | D199: 26
A200: Person 198 | B200: 25 | C200: 12 | D200: 37
... 689 more rows

Sheet School
A1: School - Alarm bell
A2: Individual | B2: Recognition | C2: Response | D2: Total pre-movement time
A3: Person 1 | B3: 3 | C3: 35 | D3: =B3+C3 -> 38
A4: Person 2 | B4: 6 | C4: 30 | D4: =B4+C4 -> 36
A5: Person 3 | B5: 10 | C5: 25 | D5: 35
A6: Person 4 | B6: 5 | C6: 17 | D6: 22
A7: Person 5 | B7: 5 | C7: 23 | D7: 28
A8: Person 6 | B8: 2 | C8: 34 | D8: 36
A9: Person 7 | B9: 3 | C9: 34 | D9: 37
A10: Person 8 | B10: 5 | C10: 28 | D10: 33
A11: Person 9 | B11: 4 | C11: 45 | D11: 49
A12: Person 10 | B12: 2 | C12: 26 | D12: 28
A13: Person 11 | B13: 3 | C13: 31 | D13: 34
A14: Person 12 | B14: 8 | C14: 25 | D14: 33
A15: Person 13 | B15: 6 | C15: 7 | D15: 13
A16: Person 14 | B16: 8 | C16: 36 | D16: 44
A17: Person 15 | B17: 9 | C17: 38 | D17: 47
A18: Person 16 | B18: 8 | C18: 42 | D18: 50
A19: Person 17 | B19: 7 | C19: 35 | D19: 42
A20: Person 18 | B20: 19 | C20: 1 | D20: =B20+C20 -> 20
A21: Person 19 | B21: 22 | C21: 16 | D21: =B21+C21 -> 38
A22: Person 20 | B22: 19 | C22: 12 | D22: 31
A23: Person 21 | B23: 25 | C23: 1 | D23: 26
A24: Person 22 | B24: 26 | C24: 1 | D24: 27
A25: Person 23 | B25: 22 | C25: 1 | D25: 23
A26: Person 24 | B26: 38 | C26: 87 | D26: =B26+C26 -> 125
A27: Person 25 | B27: 120 | C27: 42 | D27: =B27+C27 -> 162
A28: Person 26 | B28: 104 | C28: 28 | D28: 132
A29: Person 27 | B29: 101 | C29: 35 | D29: 136
A30: Person 28 | B30: 125 | C30: 45 | D30: 170
A31: Person 29 | B31: 122 | C31: 45 | D31: 167
A32: Person 30 | B32: 122 | C32: 45 | D32: 167
A33: Person 31 | B33: 117 | C33: 16 | D33: 133
A34: Person 32 | B34: 113 | C34: 18 | D34: 131
A35: Person 33 | B35: 112 | C35: 19 | D35: 131
A36: Person 34 | B36: 93 | C36: 8 | D36: 101
A37: Person 35 | B37: 95 | C37: 13 | D37: 108
A38: Person 36 | B38: 22 | C38: 83 | D38: 105
A39: Person 37 | B39: 70 | C39: 42 | D39: 112
A40: Person 38 | B40: 91 | C40: 26 | D40: 117
A41: Person 39 | B41: 91 | C41: 21 | D41: 112
A42: Person 40 | B42: 90 | C42: 14 | D42: 104
A43: Person 41 | B43: 74 | C43: 29 | D43: 103
A44: Person 42 | B44: 10 | C44: 98 | D44: 108
A45: Person 43 | B45: 9 | C45: 37 | D45: =B45+C45 -> 46
A46: Person 44 | B46: 14 | C46: 41 | D46: =B46+C46 -> 55
A47: Person 45 | B47: 13 | C47: 38 | D47: 51
A48: Person 46 | B48: 6 | C48: 37 | D48: 43
A49: Person 47 | B49: 16 | C49: 51 | D49: 67
A50: Person 48 | B50: 7 | C50: 45 | D50: 52
A51: Person 49 | B51: 18 | C51: 52 | D51: 70
A52: Person 50 | B52: 13 | C52: 28 | D52: 41
A53: Person 51 | B53: 9 | C53: 29 | D53: 38
A54: Person 52 | B54: 12 | C54: 28 | D54: 40
A55: Person 53 | B55: 11 | C55: 47 | D55: 58
A56: Person 54 | B56: 13 | C56: 36 | D56: 49
A57: Person 55 | B57: 13 | C57: 25 | D57: 38
A58: Person 56 | B58: 21 | C58: 52 | D58: =B58+C58 -> 73
A59: Person 57 | B59: 10 | C59: 60 | D59: =B59+C59 -> 70
A60: Person 58 | B60: 5 | C60: 95 | D60: 100
A61: Person 59 | B61: 10 | C61: 91 | D61: 101
A62: Person 60 | B62: 16 | C62: 85 | D62: 101
A63: Person 61 | B63: 14 | C63: 120 | D63: 134
A64: Person 62 | B64: 9 | C64: 121 | D64: 130
A65: Person 63 | B65: 11 | C65: 118 | D65: 129
A66: Person 64 | B66: 17 | C66: 44 | D66: 61
A67: Person 65 | B67: 17 | C67: 50 | D67: 67
A68: Person 66 | B68: 22 | C68: 49 | D68: 71
A69: Person 67 | B69: 21 | C69: 73 | D69: 94
A70: Person 68 | B70: 30 | C70: 62 | D70: 92
A71: Person 69 | B71: 28 | C71: 47 | D71: 75
A72: Person 70 | B72: 24 | C72: 86 | D72: 110
A73: Person 71 | B73: 22 | C73: 47 | D73: 69
A74: Person 72 | B74: 15 | C74: 61 | D74: 76

Sheet Office
A1: Office - Alarm bell
A2: Individual | B2: Recognition | C2: Response | D2: Total pre-movement time
A3: Person 1 | B3: 30 | C3: 32 | D3: =B3+C3 -> 62
A4: Person 2 | B4: 11 | C4: 1 | D4: =B4+C4 -> 12
A5: Person 3 | B5: 10 | C5: 2 | D5: 12
A6: Person 4 | D6: 42
A7: Person 5 | B7: 26 | C7: 1 | D7: =B7+C7 -> 27
A8: Person 6 | B8: 22 | C8: 5 | D8: =B8+C8 -> 27
A9: Person 7 | B9: 28 | C9: 2 | D9: 30
A10: Person 8 | B10: 6 | C10: 12 | D10: =B10+C10 -> 18
A11: Person 9 | B11: 10 | C11: 14 | D11: =B11+C11 -> 24
A12: Person 10 | D12: 38
A13: Person 11 | B13: 59 | C13: 22 | D13: 81
A14: Person 12 | B14: 74 | C14: 11 | D14: 85
A15: Person 13 | B15: 97 | C15: 93 | D15: 190
A16: Person 14 | B16: 38 | C16: 43 | D16: =B16+C16 -> 81
A17: Person 15 | B17: 105 | C17: 87 | D17: =B17+C17 -> 192
A18: Person 16 | B18: 41 | C18: 5 | D18: 46
A19: Person 17 | B19: 80 | C19: 1 | D19: 81
A20: Person 18 | B20: 111 | C20: 90 | D20: 201
A21: Person 19 | B21: 110 | C21: 71 | D21: 181
A22: Person 20 | D22: 50
A23: Person 21 | B23: 33 | C23: 2 | D23: =B23+C23 -> 35
A24: Person 22 | B24: 33 | C24: 32 | D24: 65
A25: Person 23 | D25: 68
A26: Person 24 | B26: 31 | C26: 14 | D26: 45
A27: Person 25 | B27: 29 | C27: 29 | D27: 58
A28: Person 26 | D28: 108
A29: Person 27 | D29: 111
A30: Person 28 | B30: 29 | C30: 20 | D30: =B30+C30 -> 49
A31: Person 29 | B31: 32 | C31: 1 | D31: =B31+C31 -> 33
A32: Person 30 | B32: 32 | C32: 17 | D32: 49
A33: Person 31 | B33: 45 | C33: 5 | D33: 50
A34: Person 32 | D34: 63
A35: Person 33 | B35: 30 | C35: 22 | D35: =B35+C35 -> 52
A36: Person 34 | B36: 31 | C36: 24 | D36: =B36+C36 -> 55
A37: Person 35 | B37: 25 | C37: 38 | D37: 63
A38: Person 36 | B38: 30 | C38: 19 | D38: 49
A39: Person 37 | B39: 34 | C39: 12 | D39: 46
A40: Person 38 | B40: 26 | C40: 22 | D40: =B40+C40 -> 48
A41: Person 39 | B41: 27 | C41: 10 | D41: =B41+C41 -> 37
A42: Person 40 | D42: 36
A43: Person 41 | B43: 24 | C43: 14 | D43: 38
A44: Person 42 | B44: 30 | C44: 45 | D44: 75
A45: Person 43 | B45: 33 | C45: 41 | D45: 74
A46: Person 44 | B46: 42 | C46: 6 | D46: 48
A47: Person 45 | B47: 47 | C47: 15 | D47: 62
G2501: XLine1 | H2501: ="LogLogistic(0;33,318;2,9624)" -> LogLogistic(0;33,318;2,9624) | K2501: XLine2 | L2501: ="Lognorm(40,869;29,023)" -> Lognorm(40,869;29,023)
G2503: 0 | H2503: =$I$34 -> 0 | K2503: 0 | L2503: =$K$34 -> 0
G2504: 0 | H2504: =$I$35 -> 0 | K2504: 0 | L2504: =$K$35 -> 0
G2505: 0 | H2505: =$I$36 -> 0 | K2505: 0 | L2505: =$K$36 -> 0
G2506: 0.3206412826 | H2506: =$I$37 -> 0 | K2506: 0.3206412826 | L2506: =$K$37 -> 0
G2507: 0.6412825651 | H2507: =$I$38 -> 0 | K2507: 0.6412825651 | L2507: =$K$38 -> 0
G2508: 0.9619238477 | H2508: =$I$39 -> 0 | K2508: 0.9619238477 | L2508: =$K$39 -> 0
G2509: 1.28256513 | H2509: =$I$40 -> 0 | K2509: 1.28256513 | L2509: =$K$40 -> 0
G2510: 1.603206413 | H2510: =$I$41 -> 0 | K2510: 1.603206413 | L2510: =$K$41 -> 0
G2511: 1.923847695 | H2511: =$I$42 -> 0 | K2511: 1.923847695 | L2511: =$K$42 -> 0
G2512: 2.244488978 | H2512: =$I$43 -> 0 | K2512: 2.244488978 | L2512: =$K$43 -> 0
G2513: 2.565130261 | H2513: =$I$44 -> 0 | K2513: 2.565130261 | L2513: =$K$44 -> 0
G2514: 2.885771543 | H2514: =$I$45 -> 0 | K2514: 2.885771543 | L2514: =$K$45 -> 0
G2515: 3.206412826 | H2515: =$I$46 -> 0 | K2515: 3.206412826 | L2515: =$K$46 -> 0
G2516: 3.527054108 | H2516: =$I$47 -> 0 | K2516: 3.527054108 | L2516: =$K$47 -> 0
G2517: 3.847695391 | H2517: =$I$48 -> 0 | K2517: 3.847695391 | L2517: =$K$48 -> 0
G2518: 4.168336673 | H2518: =$I$49 -> 0 | K2518: 4.168336673 | L2518: =$K$49 -> 0
G2519: 4.488977956 | H2519: =$I$50 -> 0 | K2519: 4.488977956 | L2519: =$K$50 -> 0
G2520: 4.809619238 | H2520: =$I$51 -> 0 | K2520: 4.809619238 | L2520: =$K$51 -> 0
G2521: 5.130260521 | H2521: =$I$52 -> 0 | K2521: 5.130260521 | L2521: =$K$52 -> 0
G2522: 5.450901804 | H2522: =$I$53 -> 0 | K2522: 5.450901804 | L2522: =$K$53 -> 0
G2523: 5.771543086 | H2523: =$I$54 -> 0 | K2523: 5.771543086 | L2523: =$K$54 -> 0
G2524: 6.092184369 | H2524: =$I$55 -> 0 | K2524: 6.092184369 | L2524: =$K$55 -> 0
G2525: 6.412825651 | H2525: =$I$56 -> 0 | K2525: 6.412825651 | L2525: =$K$56 -> 0
G2526: 6.733466934 | H2526: =$I$57 -> 0 | K2526: 6.733466934 | L2526: =$K$57 -> 0
G2527: 7.054108216 | H2527: =$I$58 -> 0 | K2527: 7.054108216 | L2527: =$K$58 -> 0
G2528: 7.374749499 | H2528: =$I$59 -> 0 | K2528: 7.374749499 | L2528: =$K$59 -> 0
G2529: 7.695390782 | H2529: =$I$60 -> 0 | K2529: 7.695390782 | L2529: =$K$60 -> 0
G2530: 8.016032064 | H2530: =$I$61 -> 0 | K2530: 8.016032064 | L2530: =$K$61 -> 0
G2531: 8.336673347 | H2531: =$I$62 -> 0 | K2531: 8.336673347 | L2531: =$K$62 -> 0
G2532: 8.657314629 | H2532: =$I$63 -> 0 | K2532: 8.657314629 | L2532: =$K$63 -> 0
G2533: 8.977955912 | H2533: =$I$64 -> 0 | K2533: 8.977955912 | L2533: =$K$64 -> 0
G2534: 9.298597194 | H2534: =$I$65 -> 0 | K2534: 9.298597194 | L2534: =$K$65 -> 0
G2535: 9.619238477 | H2535: =$I$66 -> 0 | K2535: 9.619238477 | L2535: =$K$66 -> 0
G2536: 9.93987976 | H2536: =$I$67 -> 0 | K2536: 9.93987976 | L2536: =$K$67 -> 0
G2537: 10.26052104 | H2537: =$I$68 -> 0 | K2537: 10.26052104 | L2537: =$K$68 -> 0
G2538: 10.58116232 | H2538: =$I$69 -> 0 | K2538: 10.58116232 | L2538: =$K$69 -> 0
G2539: 10.90180361 | H2539: =$I$70 -> 0 | K2539: 10.90180361 | L2539: =$K$70 -> 0
G2540: 11.22244489 | H2540: =$I$71 -> 0 | K2540: 11.22244489 | L2540: =$K$71 -> 0
G2541: 11.54308617 | H2541: =$I$72 -> 0 | K2541: 11.54308617 | L2541: =$K$72 -> 0
G2542: 11.86372745 | H2542: =$I$73 -> 0 | K2542: 11.86372745 | L2542: =$K$73 -> 0
G2543: 12.18436874 | H2543: =$I$74 -> 0 | K2543: 12.18436874 | L2543: =$K$74 -> 0
G2544: 12.50501002 | H2544: =$I$75 -> 0 | K2544: 12.50501002 | L2544: =$K$75 -> 0
G2545: 12.8256513 | H2545: =$I$76 -> 0 | K2545: 12.8256513 | L2545: =$K$76 -> 0
G2546: 13.14629259 | H2546: =$I$77 -> 0 | K2546: 13.14629259 | L2546: =$K$77 -> 0
G2547: 13.46693387 | H2547: =$I$78 -> 0 | K2547: 13.46693387 | L2547: =$K$78 -> 0
G2548: 13.78757515 | H2548: =$I$79 -> 0 | K2548: 13.78757515 | L2548: =$K$79 -> 0
G2549: 14.10821643 | H2549: =$I$80 -> 0 | K2549: 14.10821643 | L2549: =$K$80 -> 0
G2550: 14.42885772 | H2550: =$I$81 -> 0 | K2550: 14.42885772 | L2550: =$K$81 -> 0
G2551: 14.749499 | H2551: =$I$82 -> 0 | K2551: 14.69167518 | L2551: =$K$82 -> 0
G2552: 15.07014028 | H2552: =$I$83 -> 0 | K2552: 14.749499 | L2552: =$K$83 -> 0
G2553: 15.39078156 | H2553: =$I$84 -> 0 | K2553: 15.07014028 | L2553: =$K$84 -> 0
G2554: 15.71142285 | H2554: =$I$85 -> 0 | K2554: 15.39078156 | L2554: =$K$85 -> 0
G2555: 15.86941343 | H2555: =$I$86 -> 0 | K2555: 15.71142285 | L2555: =$K$86 -> 0
G2556: 16.03206413 | H2556: =$I$87 -> 0 | K2556: 16.03206413 | L2556: =$K$87 -> 0
G2557: 16.35270541 | H2557: =$I$88 -> 0 | K2557: 16.35270541 | L2557: =$K$88 -> 0
G2558: 16.67334669 | H2558: =$I$89 -> 0 | K2558: 16.67334669 | L2558: =$K$89 -> 0
G2559: 16.99398798 | H2559: =$I$90 -> 0 | K2559: 16.99398798 | L2559: =$K$90 -> 0
G2560: 17.31462926 | H2560: =$I$91 -> 0 | K2560: 17.31462926 | L2560: =$K$91 -> 0
G2561: 17.63527054 | H2561: =$I$92 -> 0 | K2561: 17.63527054 | L2561: =$K$92 -> 0
G2562: 17.95591182 | H2562: =$I$93 -> 0 | K2562: 17.95591182 | L2562: =$K$93 -> 0
G2563: 18.27655311 | H2563: =$I$94 -> 0 | K2563: 18.27655311 | L2563: =$K$94 -> 0
G2564: 18.59719439 | H2564: =$I$95 -> 0 | K2564: 18.59719439 | L2564: =$K$95 -> 0
G2565: 18.91783567 | H2565: =$I$96 -> 0 | K2565: 18.91783567 | L2565: =$K$96 -> 0
G2566: 19.23847695 | H2566: =$I$97 -> 0 | K2566: 19.23847695 | L2566: =$K$97 -> 0
G2567: 19.55911824 | H2567: =$I$98 -> 0 | K2567: 19.46077344 | L2567: =$K$98 -> 0
G2568: 19.87975952 | H2568: =$I$99 -> 0 | K2568: 19.55911824 | L2568: =$K$99 -> 0
G2569: 20.2004008 | H2569: =$I$100 -> 0 | K2569: 19.87975952 | L2569: =$K$100 -> 0
G2570: 20.52104208 | H2570: =$I$101 -> 0 | K2570: 20.2004008 | L2570: =$K$101 -> 0
G2571: 20.84168337 | H2571: =$I$102 -> 0 | K2571: 20.52104208 | L2571: =$K$102 -> 0
G2572: 20.86628152 | H2572: =$I$103 -> 0 | K2572: 20.84168337 | L2572: =$K$103 -> 0
G2573: 21.16232465 | H2573: =$I$104 -> 0 | K2573: 21.16232465 | L2573: =$K$104 -> 0
G2574: 21.48296593 | H2574: =$I$105 -> 0 | K2574: 21.48296593 | L2574: =$K$105 -> 0
G2575: 21.80360721 | H2575: =$I$106 -> 0 | K2575: 21.80360721 | L2575: =$K$106 -> 0
G2576: 22.1242485 | H2576: =$I$107 -> 0 | K2576: 22.1242485 | L2576: =$K$107 -> 0
G2577: 22.44488978 | H2577: =$I$108 -> 0 | K2577: 22.15075328 | L2577: =$K$108 -> 0
G2578: 22.76553106 | H2578: =$I$109 -> 0 | K2578: 22.44488978 | L2578: =$K$109 -> 0
G2579: 23.08617234 | H2579: =$I$110 -> 0 | K2579: 22.76553106 | L2579: =$K$110 -> 0
G2580: 23.40681363 | H2580: =$I$111 -> 0 | K2580: 23.08617234 | L2580: =$K$111 -> 0
G2581: 23.72745491 | H2581: =$I$112 -> 0 | K2581: 23.40681363 | L2581: =$K$112 -> 0
G2582: 24.04809619 | H2582: =$I$113 -> 0 | K2582: 23.72745491 | L2582: =$K$113 -> 0
G2583: 24.36873747 | H2583: =$I$114 -> 0 | K2583: 23.83387712 | L2583: =$K$114 -> 0
G2584: 24.68937876 | H2584: =$I$115 -> 0 | K2584: 24.04809619 | L2584: =$K$115 -> 0
G2585: 25.01002004 | H2585: =$I$116 -> 0 | K2585: 24.36873747 | L2585: =$K$116 -> 0
G2586: 25.03013303 | H2586: =$I$117 -> 0 | K2586: 24.68937876 | L2586: =$K$117 -> 0
G2587: 25.33066132 | H2587: =$I$118 -> 0 | K2587: 25.01002004 | L2587: =$K$118 -> 0
G2588: 25.65130261 | H2588: =$I$119 -> 0 | K2588: 25.33066132 | L2588: =$K$119 -> 0
G2589: 25.97194389 | H2589: =$I$120 -> 0 | K2589: 25.65130261 | L2589: =$K$120 -> 0
G2590: 26.28235111 | H2590: =$I$121 -> 0 | K2590: 25.97194389 | L2590: =$K$121 -> 0
G2591: 26.29258517 | H2591: =$I$122 -> 0 | K2591: 26.29258517 | L2591: =$K$122 -> 0
G2592: 26.61322645 | H2592: =$I$123 -> 0 | K2592: 26.61322645 | L2592: =$K$123 -> 0
G2593: 26.93386774 | H2593: =$I$124 -> 0 | K2593: 26.93386774 | L2593: =$K$124 -> 0
G2594: 27.25450902 | H2594: =$I$125 -> 0 | K2594: 27.25450902 | L2594: =$K$125 -> 0
G2595: 27.5751503 | H2595: =$I$126 -> 0 | K2595: 27.5751503 | L2595: =$K$126 -> 0
G2596: 27.89579158 | H2596: =$I$127 -> 0 | K2596: 27.89579158 | L2596: =$K$127 -> 0
G2597: 28.21643287 | H2597: =$I$128 -> 0 | K2597: 28.21643287 | L2597: =$K$128 -> 0
G2598: 28.53707415 | H2598: =$I$129 -> 0 | K2598: 28.3411204 | L2598: =$K$129 -> 0
G2599: 28.85771543 | H2599: =$I$130 -> 0 | K2599: 28.53707415 | L2599: =$K$130 -> 0
G2600: 29.05606711 | H2600: =$I$131 -> 0 | K2600: 28.85771543 | L2600: =$K$131 -> 0
G2601: 29.17835671 | H2601: =$I$132 -> 0 | K2601: 29.17835671 | L2601: =$K$132 -> 0
G2602: 29.498998 | H2602: =$I$133 -> 0 | K2602: 29.498998 | L2602: =$K$133 -> 0
G2603: 29.81963928 | H2603: =$I$134 -> 0 | K2603: 29.81963928 | L2603: =$K$134 -> 0
G2604: 30.14028056 | H2604: =$I$135 -> 0 | K2604: 30.14028056 | L2604: =$K$135 -> 0
G2605: 30.46092184 | H2605: =$I$136 -> 0 | K2605: 30.46092184 | L2605: =$K$136 -> 0
G2606: 30.78156313 | H2606: =$I$137 -> 0 | K2606: 30.78156313 | L2606: =$K$137 -> 0
G2607: 31.10220441 | H2607: =$I$138 -> 0 | K2607: 31.10220441 | L2607: =$K$138 -> 0
G2608: 31.42284569 | H2608: =$I$139 -> 0 | K2608: 31.42284569 | L2608: =$K$139 -> 0
G2609: 31.74348697 | H2609: =$I$140 -> 0 | K2609: 31.74348697 | L2609: =$K$140 -> 0
G2610: 32.06412826 | H2610: =$I$141 -> 0 | K2610: 32.06412826 | L2610: =$K$141 -> 0
G2611: 32.38476954 | H2611: =$I$142 -> 0 | K2611: 32.38476954 | L2611: =$K$142 -> 0
G2612: 32.70541082 | H2612: =$I$143 -> 0 | K2612: 32.70541082 | L2612: =$K$143 -> 0
G2613: 33.0260521 | H2613: =$I$144 -> 0 | K2613: 33.0260521 | L2613: =$K$144 -> 0
G2614: 33.318 | H2614: =$I$145 -> 0 | K2614: 33.32157398 | L2614: =$K$145 -> 0
G2615: 33.34669339 | H2615: =$I$146 -> 0 | K2615: 33.34669339 | L2615: =$K$146 -> 0
G2616: 33.66733467 | H2616: =$I$147 -> 0 | K2616: 33.66733467 | L2616: =$K$147 -> 0
G2617: 33.98797595 | H2617: =$I$148 -> 0 | K2617: 33.98797595 | L2617: =$K$148 -> 0
G2618: 34.30861723 | H2618: =$I$149 -> 0 | K2618: 34.30861723 | L2618: =$K$149 -> 0
G2619: 34.62925852 | H2619: =$I$150 -> 0 | K2619: 34.62925852 | L2619: =$K$150 -> 0
G2620: 34.9498998 | H2620: =$I$151 -> 0 | K2620: 34.9498998 | L2620: =$K$151 -> 0
G2621: 35.27054108 | H2621: =$I$152 -> 0 | K2621: 35.27054108 | L2621: =$K$152 -> 0
G2622: 35.59118236 | H2622: =$I$153 -> 0 | K2622: 35.59118236 | L2622: =$K$153 -> 0
G2623: 35.91182365 | H2623: =$I$154 -> 0 | K2623: 35.91182365 | L2623: =$K$154 -> 0
G2624: 36.23246493 | H2624: =$I$155 -> 0 | K2624: 36.23246493 | L2624: =$K$155 -> 0
G2625: 36.55310621 | H2625: =$I$156 -> 0 | K2625: 36.55310621 | L2625: =$K$156 -> 0
G2626: 36.87374749 | H2626: =$I$157 -> 0 | K2626: 36.87374749 | L2626: =$K$157 -> 0
G2627: 37.19438878 | H2627: =$I$158 -> 0 | K2627: 37.19438878 | L2627: =$K$158 -> 0
G2628: 37.51503006 | H2628: =$I$159 -> 0 | K2628: 37.51503006 | L2628: =$K$159 -> 0
G2629: 37.83567134 | H2629: =$I$160 -> 0 | K2629: 37.83567134 | L2629: =$K$160 -> 0
G2630: 38.15631263 | H2630: =$I$161 -> 0 | K2630: 38.15631263 | L2630: =$K$161 -> 0
G2631: 38.20507159 | H2631: =$I$162 -> 0 | K2631: 38.47695391 | L2631: =$K$162 -> 0
G2632: 38.47695391 | H2632: =$I$163 -> 0 | K2632: 38.79759519 | L2632: =$K$163 -> 0
G2633: 38.79759519 | H2633: =$I$164 -> 0 | K2633: 39.11823647 | L2633: =$K$164 -> 0
G2634: 39.11823647 | H2634: =$I$165 -> 0 | K2634: 39.1772547 | L2634: =$K$165 -> 0
G2635: 39.43887776 | H2635: =$I$166 -> 0 | K2635: 39.43887776 | L2635: =$K$166 -> 0
G2636: 39.75951904 | H2636: =$I$167 -> 0 | K2636: 39.75951904 | L2636: =$K$167 -> 0
G2637: 40.08016032 | H2637: =$I$168 -> 0 | K2637: 40.08016032 | L2637: =$K$168 -> 0
G2638: 40.4008016 | H2638: =$I$169 -> 0 | K2638: 40.4008016 | L2638: =$K$169 -> 0
G2639: 40.72144289 | H2639: =$I$170 -> 0 | K2639: 40.72144289 | L2639: =$K$170 -> 0
G2640: 41.04208417 | H2640: =$I$171 -> 0 | K2640: 41.04208417 | L2640: =$K$171 -> 0
G2641: 41.36272545 | H2641: =$I$172 -> 0 | K2641: 41.36272545 | L2641: =$K$172 -> 0
G2642: 41.68336673 | H2642: =$I$173 -> 0 | K2642: 41.68336673 | L2642: =$K$173 -> 0
G2643: 42.00400802 | H2643: =$I$174 -> 0 | K2643: 42.00400802 | L2643: =$K$174 -> 0
G2644: 42.3246493 | H2644: =$I$175 -> 0 | K2644: 42.3246493 | L2644: =$K$175 -> 0
G2645: 42.64529058 | H2645: =$I$176 -> 0 | K2645: 42.64529058 | L2645: =$K$176 -> 0
G2646: 42.96593186 | H2646: =$I$177 -> 0 | K2646: 42.96593186 | L2646: =$K$177 -> 0
G2647: 43.28657315 | H2647: =$I$178 -> 0 | K2647: 43.28657315 | L2647: =$K$178 -> 0
G2648: 43.60721443 | H2648: =$I$179 -> 0 | K2648: 43.60721443 | L2648: =$K$179 -> 0
G2649: 43.92785571 | H2649: =$I$180 -> 0 | K2649: 43.92785571 | L2649: =$K$180 -> 0
G2650: 44.24849699 | H2650: =$I$181 -> 0 | K2650: 44.24849699 | L2650: =$K$181 -> 0
G2651: 44.35010883 | H2651: =$I$182 -> 0 | K2651: 44.56913828 | L2651: =$K$182 -> 0
G2652: 44.56913828 | H2652: =$I$183 -> 0 | K2652: 44.88977956 | L2652: =$K$183 -> 0
G2653: 44.88977956 | H2653: =$I$184 -> 0 | K2653: 45.21042084 | L2653: =$K$184 -> 0
G2654: 45.21042084 | H2654: =$I$185 -> 0 | K2654: 45.53106212 | L2654: =$K$185 -> 0
... 361 more rows

Sheet Night club, active staff
A1: Nightclub - Active staff
A2: Individual | B2: Pre-movement time
A3: Person 1 | B3: 27
A4: Person 2 | B4: 61
A5: Person 3 | B5: 66
A6: Person 4 | B6: 55
A7: Person 5 | B7: 36
A8: Person 6 | B8: 36
A9: Person 7 | B9: 40
A10: Person 8 | B10: 71
A11: Person 9 | B11: 61
A12: Person 10 | B12: 49
A13: Person 11 | B13: 68
A14: Person 12 | B14: 54
A15: Person 13 | B15: 57
A16: Person 14 | B16: 44
A17: Person 15 | B17: 20
A18: Person 16 | B18: 49
A19: Person 17 | B19: 49
A20: Person 18 | B20: 61
A21: Person 19 | B21: 53
A22: Person 20 | B22: 50
A23: Person 21 | B23: 41
A24: Person 22 | B24: 68
A25: Person 23 | B25: 65
A26: Person 24 | B26: 20
A27: Person 25 | B27: 87
A28: Person 26 | B28: 85
A29: Person 27 | B29: 67
A30: Person 28 | B30: 50
A31: Person 29 | B31: 70
A32: Person 30 | B32: 35
A33: Person 31 | B33: 34
A34: Person 32 | B34: 34
A35: Person 33 | B35: 47
A36: Person 34 | B36: 84
A37: Person 35 | B37: 86
A38: Person 36 | B38: 53
A39: Person 37 | B39: 44
A40: Person 38 | B40: 30
A41: Person 39 | B41: 51
A42: Person 40 | B42: 52
A43: Person 41 | B43: 32
A44: Person 42 | B44: 32
A45: Person 43 | B45: 34
A46: Person 44 | B46: 54
A47: Person 45 | B47: 28
A48: Person 46 | B48: 28
A49: Person 47 | B49: 28
A50: Person 48 | B50: 28
A51: Person 49 | B51: 44
A52: Person 50 | B52: 44
A53: Person 51 | B53: 41
A54: Person 52 | B54: 41
A55: Person 53 | B55: 61
A56: Person 54 | B56: 61
A57: Person 55 | B57: 61
A58: Person 56 | B58: 61
A59: Person 57 | B59: 11
A60: Person 58 | B60: 11
A61: Person 59 | B61: 11
A62: Person 60 | B62: 21
A63: Person 61 | B63: 23
A64: Person 62 | B64: 27

Sheet _@RISKFitInformation (hidden)
A1: Created By Version | B1: 7.0.1
A2: Required Version | B2: 5.0.0
A3: Recommended Version | B3: 6.0.0
A4: Modified By Version | B4: 7.5.1
A9: Count | B9: 40
A10: GUID | B10: Name | C10: Range | D10: CRC | E10: Options | F10: Comp. Graph Serialization | G10: PP Graph Serialization | H10: QQ Graph Serialization | I10: Unsued | J10: Fixed Params | K10: Bootstrap Options | L10: BootstrapParamGraphSerialization | M10: BatchFit Options | N10: BootstrapGOFGraphSerialization | O10: FitSelector
A11: FIT_12A85_D61B4 | B11: Tolkning | C11: ='Cinema, voice alarm'!$B$3:$B$902 -> 13 | D11: 0 | E11: F1 0 0 -1E+300 1E+300 1 0 3 0 1 1 10 Binomial Geomet IntUniform Logistic LogLogistic NegBin Normal Poisson Triang Uniform 0 1 -1 1 0 1 0 0 0 | F11: GF1_rK0qDwEAEADMAQwjACYANAB1AIMAhACnALUAqAHIAcIBKgCkIwAAAAAAAQQAAAAAAAAAAAAbRml0IENvbXBhcmlzb24gZm9yIFRvbGtuaW5nASBSaXNrTG9nbG9naXN0aWMoMDsyNSw1NzE7NSwzMTExKQEBCgACAAEETm9uZQMBAQCkAQEBAQEAAQAAAAAAAAAAAAAAAAAAgGFAAQgAAAABAAQAAQABAQEBAQABAQEABAAAAArUAAHjAAD4AAAOAQAkAQA6AQBQAQBmAQB8AQCSAQANAAVJbnB1dAAAJQEBAgATAAtMb2dsb2dpc3RpYwABLwEAAgAUAAxVbnVzZWQgQ3VydmUAAk8BAAIAFAAMVW51c2VkIEN1cnZlAAOMAQACABQADFVudXNlZCBDdXJ2ZQAETAEAAgAUAAxVbnVzZWQgQ3VydmUABTkBAAIAFAAMVW51c2VkIEN1cnZlAAZOAQACABQADFVudXNlZCBDdXJ2ZQAHIwEAAgAUAAxVbnVzZWQgQ3VydmUACCkBAAIAFAAMVW51c2VkIEN1cnZlAAlgAQACALABuQEAAQIBAAAAAAAAAAABAAAAAAAA8H8BBQABAQEAAQEBAA== | J11: 0 8 | K11: F1 0 1000 .95 | O11: 4 | P11: TRUE
A12: FIT_E0E12_DA626 | B12: Respons | C12: ='Cinema, voice alarm'!$C$3:$C$902 -> 25 | D12: 0 | E12: F1 0 0 -1E+300 1E+300 1 0 3 0 1 1 10 Binomial Gamma Geomet IntUniform Logistic NegBin Normal Poisson Triang Uniform 0 1 -1 1 0 1 0 0 0 | F12: GF1_rK0qDwEAEADHAQwjACYANABuAIIAgwCmALQAowHDAb0BKgD//wAAAAAAAQQAAAAAAAAAAAEaRml0IENvbXBhcmlzb24gZm9yIFJlc3BvbnMBGlJpc2tXZWlidWxsKDIsMDEzMTsxNiwyODgpAQEQAAIAAQpTdGF0aXN0aWNzAwEBAP8BAQEBAQABAAAAAAAAAAAAAAAAAAAATkABBwAAAAEABAAAAAEBAQEBAAEBAQAEAAAACtMAAeIAAPMAAAkBAB8BADUBAEsBAGEBAHcBAI0BAA0ABUlucHV0AAAlAQECAA8AB1dlaWJ1bGwAAS8BAAIAFAAMVW51c2VkIEN1cnZlAAJPAQACABQADFVudXNlZCBDdXJ2ZQADjAEAAgAUAAxVbnVzZWQgQ3VydmUABEwBAAIAFAAMVW51c2VkIEN1cnZlAAU5AQACABQADFVudXNlZCBDdXJ2ZQAGTgEAAgAUAAxVbnVzZWQgQ3VydmUAByMBAAIAFAAMVW51c2VkIEN1cnZlAAgpAQACABQADFVudXNlZCBDdXJ2ZQAJYAEAAgCrAbQBAQECAQAAAAAAAAAAAQAAAAAAAPB/AQUAAQEBAAEBAQA= | J12: 0 8 | K12: F1 0 1000 .95 | O12: 4 | P12: TRUE
A13: FIT_24EC2_2233A | B13: Total förberedelse | C13: ='Cinema, voice alarm'!$D$3:$D$902 -> 47 | D13: 0 | E13: F1 0 0 -1E+300 1E+300 1 0 3 0 1 1 10 Binomial Geomet IntUniform Logistic LogLogistic NegBin Normal Poisson Triang Uniform 0 1 -1 1 0 1 0 0 0 | F13: GF1_rK0qDwEAEADIAQwjACYANACAAJQAlQCjALEApAHEAb4BKgD//wAAAAAAAQQAAAAAAAAAAAEmRml0IENvbXBhcmlzb24gZm9yIFRvdGFsIGbDtnJiZXJlZGVsc2UBIFJpc2tMb2dsb2dpc3RpYygwOzQwLDQ4NTs1LDc2MzcpAQEQAAIAAQpTdGF0aXN0aWNzAwEBAP8BAQEBAQABAQEABAAAAAEBAQEBAAEBAQAEAAAACtAAAd8AAPQAAAoBACABADYBAEwBAGIBAHgBAI4BAA0ABUlucHV0AAAlAQECABMAC0xvZ2xvZ2lzdGljAAEvAQACABQADFVudXNlZCBDdXJ2ZQACTwEAAgAUAAxVbnVzZWQgQ3VydmUAA4wBAAIAFAAMVW51c2VkIEN1cnZlAARMAQACABQADFVudXNlZCBDdXJ2ZQAFOQEAAgAUAAxVbnVzZWQgQ3VydmUABk4BAAIAFAAMVW51c2VkIEN1cnZlAAcjAQACABQADFVudXNlZCBDdXJ2ZQAIKQEAAgAUAAxVbnVzZWQgQ3VydmUACWABAAIArAG1AQEBAgEAAAAAAAAAAAEAAAAAAADwfwEFAAEBAQABAQEA | J13: 0 8 | K13: F1 0 1000 .95 | O13: 4 | P13: TRUE
A14: FIT_90B4C_3D2D4 | B14: Tolkning siren | C14: ='Cinema, siren'!$B$3:$B$91 -> 18 | D14: 0 | E14: F1 0 0 -1E+300 1E+300 1 0 3 0 1 1 14 Binomial Expon Gamma Geomet IntUniform Logistic LogLogistic Lognorm NegBin Normal Poisson Triang Uniform Weibull 0 1 -1 1 0 1 0 0 0 | F14: GF1_rK0qDwEAEADOAQwjACYANAB1AIkAigCtALsAqgHKAcQBKgD//wAAAAAAAQQAAAAAAAAAAAEhRml0IENvbXBhcmlzb24gZm9yIFRvbGtuaW5nIHNpcmVuARpSaXNrTG9nbm9ybSgxNiw4MDM7NCw4NTE2KQEBEAACAAEKU3RhdGlzdGljcwMBAQD/AQEBAQEAAQAAAAAAAAAAAAAAAAAAAERAAQkAAAABAAQAAAABAQEBAQABAQEABAAAAAraAAHpAAD6AAAQAQAmAQA8AQBSAQBoAQB+AQCUAQANAAVJbnB1dAAAJQEBAgAPAAdMb2dub3JtAAEvAQACABQADFVudXNlZCBDdXJ2ZQACTwEAAgAUAAxVbnVzZWQgQ3VydmUAA4wBAAIAFAAMVW51c2VkIEN1cnZlAARMAQACABQADFVudXNlZCBDdXJ2ZQAFOQEAAgAUAAxVbnVzZWQgQ3VydmUABk4BAAIAFAAMVW51c2VkIEN1cnZlAAcjAQACABQADFVudXNlZCBDdXJ2ZQAIKQEAAgAUAAxVbnVzZWQgQ3VydmUACWABAAIAsgG7AQEBAgEAAAAAAAAAAAEAAAAAAADwfwEFAAEBAQABAQEA | J14: 0 8 | K14: F1 0 1000 .95 | O14: 4 | P14: TRUE
A15: FIT_2DC56_25886 | B15: Tolkning 2 | C15: ='Cinema, voice alarm'!$B$3:$B$902 -> 21 | D15: 0 | E15: F1 0 0 -1E+300 1E+300 1 0 3 0 1 1 19 BetaGeneral Binomial Expon ExtValue ExtValueMin Gamma Geomet IntUniform Laplace Logistic LogLogistic Lognorm NegBin Normal Poisson Rayleigh Triang Uniform Weibull 0 1 -1 1 0 1 0 0 0 | F15: GF1_rK0qDwEADwDUAQwjACYANAB3AIsAjACvAL0AsAHQAcoBKgD//wAAAAAAAQQAAAAAAAAAAAEdRml0IENvbXBhcmlzb24gZm9yIFRvbGtuaW5nIDIBIFJpc2tMb2dsb2dpc3RpYygwOzI1LDU3MTs1LDMxMTEpAQEQAAIAAQpTdGF0aXN0aWNzAwEBAP8BAQEBAQABAAAAAAAAAAAAAAAAAABAYEABBQAAAAEABAAAAAEBAQEBAAEBAQAEAAAACtwAAesAAAABABYBACwBAEIBAFgBAG4BAIQBAJoBAA0ABUlucHV0AAAlAQECABMAC0xvZ0xvZ2lzdGljAAEvAQACABQADFVudXNlZCBDdXJ2ZQACTwEAAgAUAAxVbnVzZWQgQ3VydmUAA4wBAAIAFAAMVW51c2VkIEN1cnZlAARMAQACABQADFVudXNlZCBDdXJ2ZQAFOQEAAgAUAAxVbnVzZWQgQ3VydmUABk4BAAIAFAAMVW51c2VkIEN1cnZlAAcjAQACABQADFVudXNlZCBDdXJ2ZQAIKQEAAgAUAAxVbnVzZWQgQ3VydmUACWABAAIAuAHBAQEBAgEAAAAAAAAAAAEAAAAAAADwfwEFAAEBAQABAQEA | J15: 0 8 | K15: F1 0 1000 .95 | O15: 4 | P15: TRUE
A16: FIT_4F32D_C623C | B16: Respons 2 | C16: ='Cinema, voice alarm'!$C$3:$C$902 -> 12 | D16: 0 | E16: F1 0 0 -1E+300 1E+300 1 0 3 0 1 1 19 BetaGeneral Binomial Expon ExtValue ExtValueMin Gamma Geomet IntUniform Laplace Logistic LogLogistic Lognorm NegBin Normal Poisson Rayleigh Triang Uniform Weibull 0 1 -1 1 0 1 0 0 0 | F16: GF1_rK0qDwEADwDFAQwjACYANABuAIIAgwCmALQAoQHBAbsBKgD//wAAAAAAAQQAAAAAAAAAAAEcRml0IENvbXBhcmlzb24gZm9yIFJlc3BvbnMgMgEYUmlza0dhbW1hKDMsNDYwMjs0LDE2NTcpAQEQAAIAAQpTdGF0aXN0aWNzAwEBAP8BAQEBAQABAAAAAAAAAAAAAAAAAAAATkABBwAAAAEABAAAAAEBAQEBAAEBAQAEAAAACtMAAeIAAPEAAAcBAB0BADMBAEkBAF8BAHUBAIsBAA0ABUlucHV0AAAlAQECAA0ABUdhbW1hAAEvAQACABQADFVudXNlZCBDdXJ2ZQACTwEAAgAUAAxVbnVzZWQgQ3VydmUAA4wBAAIAFAAMVW51c2VkIEN1cnZlAARMAQACABQADFVudXNlZCBDdXJ2ZQAFOQEAAgAUAAxVbnVzZWQgQ3VydmUABk4BAAIAFAAMVW51c2VkIEN1cnZlAAcjAQACABQADFVudXNlZCBDdXJ2ZQAIKQEAAgAUAAxVbnVzZWQgQ3VydmUACWABAAIAqQGyAQEBAgEAAAAAAAAAAAEAAAAAAADwfwEFAAEBAQABAQEA | J16: 0 8 | K16: F1 0 1000 .95 | O16: 4 | P16: TRUE
A17: FIT_7B74E_C952F | B17: Total förberedelse talat meddelande | C17: ='Cinema, voice alarm'!$D$3:$D$902 -> 32 | D17: 0 | E17: F1 0 0 -1E+300 1E+300 1 0 3 0 1 1 19 BetaGeneral Binomial Expon ExtValue ExtValueMin Gamma Geomet IntUniform Laplace Logistic LogLogistic Lognorm NegBin Normal Poisson Rayleigh Triang Uniform Weibull 0 1 -1 1 0 1 0 0 0 | F17: GF1_rK0qDwEADwDuAQwjACYANACRAKUApgDJANcAygHqAeQBKgD//wAAAAAAAQQAAAAAAAAAAAE3Rml0IENvbXBhcmlzb24gZm9yIFRvdGFsIGbDtnJiZXJlZGVsc2UgdGFsYXQgbWVkZGVsYW5kZQEgUmlza0xvZ2xvZ2lzdGljKDA7NDAsNDg1OzUsNzYzNykBARAAAgABClN0YXRpc3RpY3MDAQEA/wEBAQEBAAEAAAAAAAAAAAAAAAAAAIBhQAEIAAAAAQAEAAAAAQEBAQEAAQEBAAQAAAAK9gABBQEAGgEAMAEARgEAXAEAcgEAiAEAngEAtAEADQAFSW5wdXQAACUBAQIAEwALTG9nTG9naXN0aWMAAS8BAAIAFAAMVW51c2VkIEN1cnZlAAJPAQACABQADFVudXNlZCBDdXJ2ZQADjAEAAgAUAAxVbnVzZWQgQ3VydmUABEwBAAIAFAAMVW51c2VkIEN1cnZlAAU5AQACABQADFVudXNlZCBDdXJ2ZQAGTgEAAgAUAAxVbnVzZWQgQ3VydmUAByMBAAIAFAAMVW51c2VkIEN1cnZlAAgpAQACABQADFVudXNlZCBDdXJ2ZQAJYAEAAgDSAdsBAQECAQAAAAAAAAAAAQAAAAAAAPB/AQUAAQEBAAEBAQA= | J17: 0 8 | K17: F1 0 1000 .95 | O17: 4 | P17: TRUE
A18: FIT_B11BC_80585 | B18: Respons siren | C18: ='Cinema, siren'!$C$3:$C$91 -> 14 | D18: 0 | E18: F1 0 0 -1E+300 1E+300 1 0 3 0 1 1 19 BetaGeneral Binomial Expon ExtValue ExtValueMin Gamma Geomet IntUniform Laplace Logistic LogLogistic Lognorm NegBin Normal Poisson Rayleigh Triang Uniform Weibull 0 1 -1 1 0 1 0 0 0 | F18: GF1_rK0qDwEAEADCAQwjACYANAB6AI4AjwCdAKsAngG+AbgBKgD//wAAAAAAAQQAAAAAAAAAAAEgRml0IENvbXBhcmlzb24gZm9yIFJlc3BvbnMgc2lyZW4BIFJpc2tMb2dsb2dpc3RpYygwOzcsMTYxODszLDI0NzMpAQEQAAIAAQpTdGF0aXN0aWNzAwEBAP8BAQEBAQABAQEABAAAAAEBAQEBAAEBAQAEAAAACsoAAdkAAO4AAAQBABoBADABAEYBAFwBAHIBAIgBAA0ABUlucHV0AAAlAQECABMAC0xvZ2xvZ2lzdGljAAEvAQACABQADFVudXNlZCBDdXJ2ZQACTwEAAgAUAAxVbnVzZWQgQ3VydmUAA4wBAAIAFAAMVW51c2VkIEN1cnZlAARMAQACABQADFVudXNlZCBDdXJ2ZQAFOQEAAgAUAAxVbnVzZWQgQ3VydmUABk4BAAIAFAAMVW51c2VkIEN1cnZlAAcjAQACABQADFVudXNlZCBDdXJ2ZQAIKQEAAgAUAAxVbnVzZWQgQ3VydmUACWABAAIApgGvAQEBAgEAAAAAAAAAAAEAAAAAAADwfwEFAAEBAQABAQEA | J18: 0 8 | K18: F1 0 1000 .95 | O18: 4 | P18: TRUE
A19: FIT_72220_688E9 | B19: Respons 3 | C19: ='Cinema, siren'!$C$3:$C$91 -> 8 | D19: 0 | E19: F1 0 0 -1E+300 1E+300 1 0 3 0 1 1 19 BetaGeneral Binomial Expon ExtValue ExtValueMin Gamma Geomet IntUniform Laplace Logistic LogLogistic Lognorm NegBin Normal Poisson Rayleigh Triang Uniform Weibull 0 1 -1 1 0 1 0 0 0 | F19: GF1_rK0qDwEADwDJAQwjACYANABwAIQAhQCoALYApQHFAb8BKgD//wAAAAAAAQQAAAAAAAAAAAEcRml0IENvbXBhcmlzb24gZm9yIFJlc3BvbnMgMwEaUmlza0xvZ25vcm0oOCwxNTQzOzQsNTgxOCkBARAAAgABClN0YXRpc3RpY3MDAQEA/wEBAQEBAAEAAAAAAAAAAAAAAAAAAAA+QAEHAAAAAQAEAAAAAQEBAQEAAQEBAAQAAAAK1QAB5AAA9QAACwEAIQEANwEATQEAYwEAeQEAjwEADQAFSW5wdXQAACUBAQIADwAHTG9nbm9ybQABLwEAAgAUAAxVbnVzZWQgQ3VydmUAAk8BAAIAFAAMVW51c2VkIEN1cnZlAAOMAQACABQADFVudXNlZCBDdXJ2ZQAETAEAAgAUAAxVbnVzZWQgQ3VydmUABTkBAAIAFAAMVW51c2VkIEN1cnZlAAZOAQACABQADFVudXNlZCBDdXJ2ZQAHIwEAAgAUAAxVbnVzZWQgQ3VydmUACCkBAAIAFAAMVW51c2VkIEN1cnZlAAlgAQACAK0BtgEBAQIBAAAAAAAAAAABAAAAAAAA8H8BBQABAQEAAQEBAA== | J19: 0 8 | K19: F1 0 1000 .95 | O19: 4 | P19: TRUE
A20: FIT_6FAD1_C0BC9 | B20: Total förberedelse siren | C20: ='Cinema, siren'!$D$3:$D$91 -> 25 | D20: 0 | E20: F1 0 0 -1E+300 1E+300 1 0 3 0 1 1 19 BetaGeneral Binomial Expon ExtValue ExtValueMin Gamma Geomet IntUniform Laplace Logistic LogLogistic Lognorm NegBin Normal Poisson Rayleigh Triang Uniform Weibull 0 1 -1 1 0 1 0 0 0 | F20: GF1_rK0qDwEAEADZAQwjACYANACAAJQAlQC4AMYAtQHVAc8BKgD//wAAAAAAAQQAAAAAAAAAAAEsRml0IENvbXBhcmlzb24gZm9yIFRvdGFsIGbDtnJiZXJlZGVsc2Ugc2lyZW4BGlJpc2tXZWlidWxsKDMsODUzODsyNyw1MjMpAQEQAAIAAQpTdGF0aXN0aWNzAwEBAP8BAQEBAQABAAAAAAAAAAAAAAAAAAAASUABCwAAAAEABAAAAAEBAQEBAAEBAQAEAAAACuUAAfQAAAUBABsBADEBAEcBAF0BAHMBAIkBAJ8BAA0ABUlucHV0AAAlAQECAA8AB1dlaWJ1bGwAAS8BAAIAFAAMVW51c2VkIEN1cnZlAAJPAQACABQADFVudXNlZCBDdXJ2ZQADjAEAAgAUAAxVbnVzZWQgQ3VydmUABEwBAAIAFAAMVW51c2VkIEN1cnZlAAU5AQACABQADFVudXNlZCBDdXJ2ZQAGTgEAAgAUAAxVbnVzZWQgQ3VydmUAByMBAAIAFAAMVW51c2VkIEN1cnZlAAgpAQACABQADFVudXNlZCBDdXJ2ZQAJYAEAAgC9AcYBAQECAQAAAAAAAAAAAQAAAAAAAPB/AQUAAQEBAAEBAQA= | J20: 0 8 | K20: F1 0 1000 .95 | O20: 4 | P20: TRUE
A21: FIT_50CCE_29B72 | B21: Tolkning rinklocka | C21: ='Cinema, alarm bell'!$B$3:$B$888 -> 8 | D21: 0 | E21: F1 0 0 -1E+300 1E+300 1 0 3 0 1 1 19 BetaGeneral Binomial Expon ExtValue ExtValueMin Gamma Geomet IntUniform Laplace Logistic LogLogistic Lognorm NegBin Normal Poisson Rayleigh Triang Uniform Weibull 0 1 -1 1 0 1 0 0 0 | F21: GF1_rK0qDwEAEADQAQwjACYANAB3AIsAjACvAL0AqgHMAcYBKgD//wAAAAAAAQQAAAAAAAAAAAElRml0IENvbXBhcmlzb24gZm9yIFRvbGtuaW5nIHJpbmtsb2NrYQEYUmlza0dhbW1hKDMsNjU1Nzs1LDIwMjkpAQEQAAIAAQpTdGF0aXN0aWNzAwEBAP8BAQEBAQABAAAAAAAAAAAAAAAAAAAAWUABBgAAAAEABAAAAAEBAQEBAAEBAQAEAAAACtwAAesAAPoAABABACYBADwBAFIBAGgBAH4BAJQBAA0ABUlucHV0AAAlAQECAA0ABUdhbW1hAAEvAQACABQADFVudXNlZCBDdXJ2ZQACTwEAAgAUAAxVbnVzZWQgQ3VydmUAA4wBAAIAFAAMVW51c2VkIEN1cnZlAARMAQACABQADFVudXNlZCBDdXJ2ZQAFOQEAAgAUAAxVbnVzZWQgQ3VydmUABk4BAAIAFAAMVW51c2VkIEN1cnZlAAcjAQACABQADFVudXNlZCBDdXJ2ZQAIKQEAAgAUAAxVbnVzZWQgQ3VydmUACWABAAIAsgG8AQABAgGamZmZmZmpPwAAZmZmZmZm7j8AAAUAAQEBAAEBAQA= | J21: 0 8 | K21: F1 0 1000 .95 | O21: 4 | P21: TRUE
A22: FIT_8BE35_CF858 | B22: Respons ringklocka | C22: ='Cinema, alarm bell'!$C$3:$C$888 -> 15 | D22: 0 | E22: F1 0 0 -1E+300 1E+300 1 0 3 0 1 1 19 BetaGeneral Binomial Expon ExtValue ExtValueMin Gamma Geomet IntUniform Laplace Logistic LogLogistic Lognorm NegBin Normal Poisson Rayleigh Triang Uniform Weibull 0 1 -1 1 0 1 0 0 0 | F22: GF1_rK0qDwEAEADSAQwjACYANAB5AI0AjgCxAL8ArgHOAcgBKgD//wAAAAAAAQQAAAAAAAAAAAElRml0IENvbXBhcmlzb24gZm9yIFJlc3BvbnMgcmluZ2tsb2NrYQEaUmlza1dlaWJ1bGwoMSw3MDk2OzE1LDE0NikBARAAAgABClN0YXRpc3RpY3MDAQEA/wEBAQEBAAEAAAAAAAAAAAAAAAAAAABOQAEHAAAAAQAEAAAAAQEBAQEAAQEBAAQAAAAK3gAB7QAA/gAAFAEAKgEAQAEAVgEAbAEAggEAmAEADQAFSW5wdXQAACUBAQIADwAHV2VpYnVsbAABLwEAAgAUAAxVbnVzZWQgQ3VydmUAAk8BAAIAFAAMVW51c2VkIEN1cnZlAAOMAQACABQADFVudXNlZCBDdXJ2ZQAETAEAAgAUAAxVbnVzZWQgQ3VydmUABTkBAAIAFAAMVW51c2VkIEN1cnZlAAZOAQACABQADFVudXNlZCBDdXJ2ZQAHIwEAAgAUAAxVbnVzZWQgQ3VydmUACCkBAAIAFAAMVW51c2VkIEN1cnZlAAlgAQACALYBvwEBAQIBAAAAAAAAAAABAAAAAAAA8H8BBQABAQEAAQEBAA== | J22: 0 8 | K22: F1 0 1000 .95 | O22: 4 | P22: TRUE
A23: FIT_4E456_A15FE | B23: Total förberedelse ringklocka | C23: ='Cinema, alarm bell'!$D$3:$D$888 -> 17 | D23: 0 | E23: F1 0 0 -1E+300 1E+300 1 0 3 0 1 1 19 BetaGeneral Binomial Expon ExtValue ExtValueMin Gamma Geomet IntUniform Laplace Logistic LogLogistic Lognorm NegBin Normal Poisson Rayleigh Triang Uniform Weibull 0 1 -1 1 0 1 0 0 0 | F23: GF1_rK0qDwEAEADnAQwjACYANACKAJ4AnwDCANAAwwHjAd0BKgD//wAAAAAAAQQAAAAAAAAAAAExRml0IENvbXBhcmlzb24gZm9yIFRvdGFsIGbDtnJiZXJlZGVsc2UgcmluZ2tsb2NrYQEfUmlza0xvZ2xvZ2lzdGljKDA7MjksNDU7NCw5NzY1KQEBEAACAAEKU3RhdGlzdGljcwMBAQD/AQEBAQEAAQAAAAAAAAAAAAAAAAAAwGxAAQUAAAABAAQAAAABAQEBAQABAQEABAAAAArvAAH+AAATAQApAQA/AQBVAQBrAQCBAQCXAQCtAQANAAVJbnB1dAAAJQEBAgATAAtMb2dsb2dpc3RpYwABLwEAAgAUAAxVbnVzZWQgQ3VydmUAAk8BAAIAFAAMVW51c2VkIEN1cnZlAAOMAQACABQADFVudXNlZCBDdXJ2ZQAETAEAAgAUAAxVbnVzZWQgQ3VydmUABTkBAAIAFAAMVW51c2VkIEN1cnZlAAZOAQACABQADFVudXNlZCBDdXJ2ZQAHIwEAAgAUAAxVbnVzZWQgQ3VydmUACCkBAAIAFAAMVW51c2VkIEN1cnZlAAlgAQACAMsB1AEBAQIBAAAAAAAAAAABAAAAAAAA8H8BBQABAQEAAQEBAA== | J23: 0 8 | K23: F1 0 1000 .95 | O23: 4 | P23: TRUE
A24: FIT_6C0C2_5FF27 | B24: Tolkning undervisning | C24: =School!$B$3:$B$74 -> 26 | D24: 0 | E24: F1 0 0 -1E+300 1E+300 1 0 3 0 1 1 19 BetaGeneral Binomial Expon ExtValue ExtValueMin Gamma Geomet IntUniform Laplace Logistic LogLogistic Lognorm NegBin Normal Poisson Rayleigh Triang Uniform Weibull 0 1 -1 1 0 1 0 0 0 | F24: GF1_rK0qDwEAEADCAQwjACYANAB8AJAAkQCfAK0AnAG+AbgBKgD//wAAAAAAAQQAAAAAAAAAAAEoRml0IENvbXBhcmlzb24gZm9yIFRvbGtuaW5nIHVuZGVydmlzbmluZwEaUmlza0xvZ25vcm0oMzMsMDMyOzUxLDk5NCkBARAAAgABClN0YXRpc3RpY3MDAQEA/wEBAQEBAAEBAQAEAAAAAQEBAQEAAQEBAAQAAAAKzAAB2wAA7AAAAgEAGAEALgEARAEAWgEAcAEAhgEADQAFSW5wdXQAACUBAQIADwAHTG9nbm9ybQABLwEAAgAUAAxVbnVzZWQgQ3VydmUAAk8BAAIAFAAMVW51c2VkIEN1cnZlAAOMAQACABQADFVudXNlZCBDdXJ2ZQAETAEAAgAUAAxVbnVzZWQgQ3VydmUABTkBAAIAFAAMVW51c2VkIEN1cnZlAAZOAQACABQADFVudXNlZCBDdXJ2ZQAHIwEAAgAUAAxVbnVzZWQgQ3VydmUACCkBAAIAFAAMVW51c2VkIEN1cnZlAAlgAQACAKQBrgEBAQIBmpmZmZmZqT8AAGZmZmZmZu4/AAAFAAEBAQABAQEA | J24: 0 8 | K24: F1 0 1000 .95 | O24: 4 | P24: TRUE
A25: FIT_5C16D_E71CD | B25: Respons utbildningslokal | C25: =School!$C$3:$C$74 -> 1 | D25: 0 | E25: F1 0 0 -1E+300 1E+300 1 0 3 0 1 1 19 BetaGeneral Binomial Expon ExtValue ExtValueMin Gamma Geomet IntUniform Laplace Logistic LogLogistic Lognorm NegBin Normal Poisson Rayleigh Triang Uniform Weibull 0 1 -1 1 0 1 0 0 0 | F25: GF1_rK0qDwEAEADAAQwjACYANAB5AI0AjgCcAKoAmgG8AbYBKgD//wAAAAAAAQQAAAAAAAAAAAErRml0IENvbXBhcmlzb24gZm9yIFJlc3BvbnMgdXRiaWxkbmluZ3Nsb2thbAEUUmlza1JheWxlaWdoKDM1LDQ3NCkBARAAAgABClN0YXRpc3RpY3MDAQEA/wEBAQEBAAEBAQAEAAAAAQEBAQEAAQEBAAQAAAAKyQAB2AAA6gAAAAEAFgEALAEAQgEAWAEAbgEAhAEADQAFSW5wdXQAACUBAQIAEAAIUmF5bGVpZ2gAAS8BAAIAFAAMVW51c2VkIEN1cnZlAAJPAQACABQADFVudXNlZCBDdXJ2ZQADjAEAAgAUAAxVbnVzZWQgQ3VydmUABEwBAAIAFAAMVW51c2VkIEN1cnZlAAU5AQACABQADFVudXNlZCBDdXJ2ZQAGTgEAAgAUAAxVbnVzZWQgQ3VydmUAByMBAAIAFAAMVW51c2VkIEN1cnZlAAgpAQACABQADFVudXNlZCBDdXJ2ZQAJYAEAAgCiAawBAQECAZqZmZmZmak/AABmZmZmZmbuPwAABQABAQEAAQEBAA== | J25: 0 8 | K25: F1 0 1000 .95 | O25: 4 | P25: TRUE
A26: FIT_15C06_CE269 | B26: Total förberedelse undervisningslokal | C26: =School!$D$3:$D$74 -> 125 | D26: 0 | E26: F1 0 0 -1E+300 1E+300 1 0 3 0 1 1 19 BetaGeneral Binomial Expon ExtValue ExtValueMin Gamma Geomet IntUniform Laplace Logistic LogLogistic Lognorm NegBin Normal Poisson Rayleigh Triang Uniform Weibull 0 1 -1 1 0 1 0 0 0 | F26: GF1_rK0qDwEAEADhAQwjACYANACHAJsAnAC/AM0AvQHdAdcBKgD//wAAAAAAAQQAAAAAAAAAAAE5Rml0IENvbXBhcmlzb24gZm9yIFRvdGFsIGbDtnJiZXJlZGVsc2UgdW5kZXJ2aXNuaW5nc2xva2FsARRSaXNrUmF5bGVpZ2goNjAsNzU1KQEBEAACAAEKU3RhdGlzdGljcwMBAQD/AQEBAQEAAQAAAAAAAAAAAAAAAAAAAGlAAQsAAAABAAQAAAABAQEBAQABAQEABAAAAArsAAH7AAANAQAjAQA5AQBPAQBlAQB7AQCRAQCnAQANAAVJbnB1dAAAJQEBAgAQAAhSYXlsZWlnaAABLwEAAgAUAAxVbnVzZWQgQ3VydmUAAk8BAAIAFAAMVW51c2VkIEN1cnZlAAOMAQACABQADFVudXNlZCBDdXJ2ZQAETAEAAgAUAAxVbnVzZWQgQ3VydmUABTkBAAIAFAAMVW51c2VkIEN1cnZlAAZOAQACABQADFVudXNlZCBDdXJ2ZQAHIwEAAgAUAAxVbnVzZWQgQ3VydmUACCkBAAIAFAAMVW51c2VkIEN1cnZlAAlgAQACAMUBzgEBAQIBAAAAAAAAAAABAAAAAAAA8H8BBQABAQEAAQEBAA== | J26: 0 8 | K26: F1 0 1000 .95 | O26: 4 | P26: TRUE
A27: FIT_33352_9C5C9 | B27: Total förberedelse 2 | C27: =School!$D$3:$D$74 -> 162 | D27: 0 | E27: F1 0 0 -1E+300 1E+300 1 0 3 0 1 1 18 BetaGeneral Binomial Expon ExtValue ExtValueMin Gamma Geomet IntUniform Laplace Logistic LogLogistic Lognorm NegBin Normal Poisson Triang Uniform Weibull 0 1 -1 1 0 1 0 0 0 | J27: 0 8 | K27: F1 0 1000 .95 | O27: 4 | P27: TRUE
A28: FIT_639B0_C1B50 | B28: Förberedelse Nattklubb mv | C28: ='Night club, active staff'!$B$3:$B$64 -> 85 | D28: 0 | E28: F1 0 0 -1E+300 1E+300 1 0 3 0 1 1 18 BetaGeneral Binomial Expon ExtValue ExtValueMin Gamma Geomet IntUniform Laplace Logistic LogLogistic Lognorm NegBin Normal Poisson Triang Uniform Weibull 0 1 -1 1 0 1 0 0 0 | F28: GF1_rK0qDwEAEADQAQwjACYANACGAJoAmwCpALcAqgHMAcYBKgD//wAAAAAAAQQAAAAAAAAAAAEtRml0IENvbXBhcmlzb24gZm9yIEbDtnJiZXJlZGVsc2UgTmF0dGtsdWJiIG12AR9SaXNrTG9nbG9naXN0aWMoMDs0NCwzMDM7Myw4MTkpAQEQAAIAAQpTdGF0aXN0aWNzAwEBAP8BAQEBAQABAQEABAAAAAEBAQEBAAEBAQAEAAAACtYAAeUAAPoAABABACYBADwBAFIBAGgBAH4BAJQBAA0ABUlucHV0AAAlAQECABMAC0xvZ2xvZ2lzdGljAAEvAQACABQADFVudXNlZCBDdXJ2ZQACTwEAAgAUAAxVbnVzZWQgQ3VydmUAA4wBAAIAFAAMVW51c2VkIEN1cnZlAARMAQACABQADFVudXNlZCBDdXJ2ZQAFOQEAAgAUAAxVbnVzZWQgQ3VydmUABk4BAAIAFAAMVW51c2VkIEN1cnZlAAcjAQACABQADFVudXNlZCBDdXJ2ZQAIKQEAAgAUAAxVbnVzZWQgQ3VydmUACWABAAIAsgG8AQEBAgGamZmZmZmpPwAAZmZmZmZm7j8AAAUAAQEBAAEBAQA= | J28: 0 8 | K28: F1 0 1000 .95 | O28: 4 | P28: TRUE
A29: FIT_933A_86E70 | B29: Förberedelse nattklubb ej v | C29: ='Night club, passive staff'!$B$3:$B$86 -> 70 | D29: 0 | E29: F1 0 0 -1E+300 1E+300 1 0 3 0 1 1 23 BetaGeneral Binomial Expon ExtValue ExtValueMin Gamma Geomet IntUniform InvGauss Laplace Levy Logistic LogLogistic Lognorm NegBin Normal Pareto Pearson5 Pearson6 Poisson Triang Uniform Weibull 0 1 -1 1 0 1 0 0 0 | F29: GF1_rK0qDwEAEADTAQwjACYANACJAJ0AngCsALoArQHPAckBKgD//wAAAAAAAQQAAAAAAAAAAAEvRml0IENvbXBhcmlzb24gZm9yIEbDtnJiZXJlZGVsc2UgbmF0dGtsdWJiIGVqIHYBIFJpc2tMb2dsb2dpc3RpYygwOzUwLDYxNjsyLDMxNTMpAQEQAAIAAQpTdGF0aXN0aWNzAwEBAP8BAQEBAQABAQEABAAAAAEBAQEBAAEBAQAEAAAACtkAAegAAP0AABMBACkBAD8BAFUBAGsBAIEBAJcBAA0ABUlucHV0AAAlAQECABMAC0xvZ2xvZ2lzdGljAAEvAQACABQADFVudXNlZCBDdXJ2ZQACTwEAAgAUAAxVbnVzZWQgQ3VydmUAA4wBAAIAFAAMVW51c2VkIEN1cnZlAARMAQACABQADFVudXNlZCBDdXJ2ZQAFOQEAAgAUAAxVbnVzZWQgQ3VydmUABk4BAAIAFAAMVW51c2VkIEN1cnZlAAcjAQACABQADFVudXNlZCBDdXJ2ZQAIKQEAAgAUAAxVbnVzZWQgQ3VydmUACWABAAIAtQG/AQEBAgGamZmZmZmpPwAAZmZmZmZm7j8AAAUAAQEBAAEBAQA= | J29: 0 8 | K29: F1 0 1000 .95 | O29: 4 | P29: TRUE
A30: FIT_4A533_24864 | B30: Förberedelse nattklubb ej vakt | C30: ='Night club, passive staff'!$B$3:$B$86 -> 69 | D30: 0 | E30: F1 0 0 -1E+300 1E+300 1 0 3 0 1 1 18 BetaGeneral Binomial Expon ExtValue ExtValueMin Gamma Geomet IntUniform Laplace Logistic LogLogistic Lognorm NegBin Normal Poisson Triang Uniform Weibull 0 1 -1 1 0 1 0 0 0 | J30: 0 8 | K30: F1 0 1000 .95 | O30: 4 | P30: TRUE
A31: FIT_7105F_DC009 | B31: Tolkning 3 | C31: ='Department store'!$B$3:$B$231 -> 54 | D31: 0 | E31: F1 0 0 -1E+300 1E+300 1 0 3 0 1 1 18 BetaGeneral Binomial Expon ExtValue ExtValueMin Gamma Geomet IntUniform Laplace Logistic LogLogistic Lognorm NegBin Normal Poisson Triang Uniform Weibull 0 1 -1 1 0 1 0 0 0 | F31: GF1_rK0qDwEAEADBAQwjACYANAB3AIsAjACaAKgAmwG9AbcBKgD//wAAAAAAAQQAAAAAAAAAAAEdRml0IENvbXBhcmlzb24gZm9yIFRvbGtuaW5nIDMBIFJpc2tMb2dsb2dpc3RpYygwOzIzLDA4OTs0LDQzMDMpAQEQAAIAAQpTdGF0aXN0aWNzAwEBAP8BAQEBAQABAQEABAAAAAEBAQEBAAEBAQAEAAAACscAAdYAAOsAAAEBABcBAC0BAEMBAFkBAG8BAIUBAA0ABUlucHV0AAAlAQECABMAC0xvZ2xvZ2lzdGljAAEvAQACABQADFVudXNlZCBDdXJ2ZQACTwEAAgAUAAxVbnVzZWQgQ3VydmUAA4wBAAIAFAAMVW51c2VkIEN1cnZlAARMAQACABQADFVudXNlZCBDdXJ2ZQAFOQEAAgAUAAxVbnVzZWQgQ3VydmUABk4BAAIAFAAMVW51c2VkIEN1cnZlAAcjAQACABQADFVudXNlZCBDdXJ2ZQAIKQEAAgAUAAxVbnVzZWQgQ3VydmUACWABAAIAowGtAQEBAgGamZmZmZmpPwAAZmZmZmZm7j8AAAUAAQEBAAEBAQA= | J31: 0 8 | K31: F1 0 1000 .95 | O31: 4 | P31: TRUE
A32: FIT_A680_5DC0A | B32: Respons 4 | C32: ='Department store'!$C$3:$C$231 -> 41 | D32: 0 | E32: F1 0 0 -1E+300 1E+300 1 0 3 0 1 1 18 BetaGeneral Binomial Expon ExtValue ExtValueMin Gamma Geomet IntUniform Laplace Logistic LogLogistic Lognorm NegBin Normal Poisson Triang Uniform Weibull 0 1 -1 1 0 1 0 0 0 | F32: GF1_rK0qDwEAEACyAQwjACYANABuAIIAgwCRAJ8AjAGuAagBKgD//wAAAAAAAQQAAAAAAAAAAAEcRml0IENvbXBhcmlzb24gZm9yIFJlc3BvbnMgNAEYUmlza0dhbW1hKDAsODQxOTM7MTIsNjQpAQEQAAIAAQpTdGF0aXN0aWNzAwEBAP8BAQEBAQABAQEABAAAAAEBAQEBAAEBAQAEAAAACr4AAc0AANwAAPIAAAgBAB4BADQBAEoBAGABAHYBAA0ABUlucHV0AAAlAQECAA0ABUdhbW1hAAEvAQACABQADFVudXNlZCBDdXJ2ZQACTwEAAgAUAAxVbnVzZWQgQ3VydmUAA4wBAAIAFAAMVW51c2VkIEN1cnZlAARMAQACABQADFVudXNlZCBDdXJ2ZQAFOQEAAgAUAAxVbnVzZWQgQ3VydmUABk4BAAIAFAAMVW51c2VkIEN1cnZlAAcjAQACABQADFVudXNlZCBDdXJ2ZQAIKQEAAgAUAAxVbnVzZWQgQ3VydmUACWABAAIAlAGeAQEBAgGamZmZmZmpPwAAZmZmZmZm7j8AAAUAAQEBAAEBAQA= | J32: 0 8 | K32: F1 0 1000 .95 | O32: 4 | P32: TRUE
A33: FIT_C0878_579C5 | B33: Total förberedelse 3 | C33: ='Department store'!$D$3:$D$231 -> 31 | D33: 0 | E33: F1 0 0 -1E+300 1E+300 1 0 3 0 1 1 18 BetaGeneral Binomial Expon ExtValue ExtValueMin Gamma Geomet IntUniform Laplace Logistic LogLogistic Lognorm NegBin Normal Poisson Triang Uniform Weibull 0 1 -1 1 0 1 0 0 0 | F33: GF1_rK0qDwEAEADXAQwjACYANAB8AJAAkQC0AMIAsQHTAc0BKgD//wAAAAAAAQQAAAAAAAAAAAEoRml0IENvbXBhcmlzb24gZm9yIFRvdGFsIGbDtnJiZXJlZGVsc2UgMwEaUmlza0xvZ25vcm0oMzUsOTE5OzE4LDI3OSkBARAAAgABClN0YXRpc3RpY3MDAQEA/wEBAQEBAAEAAAAAAAAAAAAAAAAAAABeQAEHAAAAAQAEAAAAAQEBAQEAAQEBAAQAAAAK4QAB8AAAAQEAFwEALQEAQwEAWQEAbwEAhQEAmwEADQAFSW5wdXQAACUBAQIADwAHTG9nbm9ybQABLwEAAgAUAAxVbnVzZWQgQ3VydmUAAk8BAAIAFAAMVW51c2VkIEN1cnZlAAOMAQACABQADFVudXNlZCBDdXJ2ZQAETAEAAgAUAAxVbnVzZWQgQ3VydmUABTkBAAIAFAAMVW51c2VkIEN1cnZlAAZOAQACABQADFVudXNlZCBDdXJ2ZQAHIwEAAgAUAAxVbnVzZWQgQ3VydmUACCkBAAIAFAAMVW51c2VkIEN1cnZlAAlgAQACALkBwwEAAQIBmpmZmZmZqT8AAGZmZmZmZu4/AAAFAAEBAQABAQEA | J33: 0 8 | K33: F1 0 1000 .95 | O33: 4 | P33: TRUE
A34: FIT_CE595_8A1B6 | B34: Två personer | C34: ='Restaurant, café'!$L$2:$L$13 ->  | D34: 0 | E34: F1 0 0 -1E+300 1E+300 1 0 0 0 0 1 23 BetaGeneral Binomial Expon ExtValue ExtValueMin Gamma Geomet IntUniform InvGauss Laplace Levy Logistic LogLogistic Lognorm NegBin Normal Pareto Pearson5 Pearson6 Poisson Triang Uniform Weibull 0 1 -1 1 0 1 0 0 0 | F34: GF1_rK0qDwEADwC9AQwjACYANAB2AIoAiwCZAKcAlwG5AbMBKgD//wAAAAAAAQQAAAAAAAAAAAEgRml0IENvbXBhcmlzb24gZm9yIFR2w6UgcGVyc29uZXIBHFJpc2tFeHR2YWx1ZSg0OCw3NjM0OzgsNTg4MSkBARAAAgABClN0YXRpc3RpY3MDAQEA/wEBAQEBAAEBAQAEAAAAAQEBAQEAAQEBAAQAAAAKxgAB1QAA5wAA/QAAEwEAKQEAPwEAVQEAawEAgQEADQAFSW5wdXQAACUBAQIAEAAIRXh0VmFsdWUAAS8BAAIAFAAMVW51c2VkIEN1cnZlAAJPAQACABQADFVudXNlZCBDdXJ2ZQADjAEAAgAUAAxVbnVzZWQgQ3VydmUABEwBAAIAFAAMVW51c2VkIEN1cnZlAAU5AQACABQADFVudXNlZCBDdXJ2ZQAGTgEAAgAUAAxVbnVzZWQgQ3VydmUAByMBAAIAFAAMVW51c2VkIEN1cnZlAAgpAQACABQADFVudXNlZCBDdXJ2ZQAJYAEAAgCfAakBAQECAZqZmZmZmak/AABmZmZmZmbuPwAABQABAQEAAQEBAA== | J34: 0 8 | K34: F1 0 1000 .95 | O34: 4 | P34: TRUE
A35: FIT_2215A_3E811 | B35: Dataset 1 | C35: ='Restaurant, café'!$M$2:$M$17 ->  | D35: 0 | E35: F1 0 0 -1E+300 1E+300 1 0 0 0 0 1 23 BetaGeneral Binomial Expon ExtValue ExtValueMin Gamma Geomet IntUniform InvGauss Laplace Levy Logistic LogLogistic Lognorm NegBin Normal Pareto Pearson5 Pearson6 Poisson Triang Uniform Weibull 0 1 -1 1 0 1 0 0 0 | F35: GF1_rK0qDwEADwC2AQwjACYANABwAIQAhQCTAKEAkAGyAawBKgD//wAAAAAAAQQAAAAAAAAAAAEcRml0IENvbXBhcmlzb24gZm9yIERhdGFzZXQgMQEaUmlza1VuaWZvcm0oMTUsMjg2OzkwLDcxNCkBARAAAgABClN0YXRpc3RpY3MDAQEA/wEBAQEBAAEBAQAEAAAAAQEBAQEAAQEBAAQAAAAKwAABzwAA4AAA9gAADAEAIgEAOAEATgEAZAEAegEADQAFSW5wdXQAACUBAQIADwAHVW5pZm9ybQABLwEAAgAUAAxVbnVzZWQgQ3VydmUAAk8BAAIAFAAMVW51c2VkIEN1cnZlAAOMAQACABQADFVudXNlZCBDdXJ2ZQAETAEAAgAUAAxVbnVzZWQgQ3VydmUABTkBAAIAFAAMVW51c2VkIEN1cnZlAAZOAQACABQADFVudXNlZCBDdXJ2ZQAHIwEAAgAUAAxVbnVzZWQgQ3VydmUACCkBAAIAFAAMVW51c2VkIEN1cnZlAAlgAQACAJgBogEBAQIBmpmZmZmZqT8AAGZmZmZmZu4/AAAFAAEBAQABAQEA | J35: 0 8 | K35: F1 0 1000 .95 | O35: 4 | P35: TRUE
A36: FIT_D2ECA_87AA | B36: Total förberedelse 4 | C36: ='Restaurant, café'!$D$3:$D$29 ->  | D36: 0 | E36: F1 0 0 -1E+300 1E+300 1 0 3 0 1 1 18 BetaGeneral Binomial Expon ExtValue ExtValueMin Gamma Geomet IntUniform Laplace Logistic LogLogistic Lognorm NegBin Normal Poisson Triang Uniform Weibull 0 1 -1 1 0 1 0 0 0 | F36: GF1_rK0qDwEAEADMAQwjACYANACCAJYAlwClALMApgHIAcIBKgD//wAAAAAAAQQAAAAAAAAAAAEoRml0IENvbXBhcmlzb24gZm9yIFRvdGFsIGbDtnJiZXJlZGVsc2UgNAEgUmlza0xvZ2xvZ2lzdGljKDA7NTAsOTUzOzUsNjE4NCkBARAAAgABClN0YXRpc3RpY3MDAQEA/wEBAQEBAAEBAQAEAAAAAQEBAQEAAQEBAAQAAAAK0gAB4QAA9gAADAEAIgEAOAEATgEAZAEAegEAkAEADQAFSW5wdXQAACUBAQIAEwALTG9nbG9naXN0aWMAAS8BAAIAFAAMVW51c2VkIEN1cnZlAAJPAQACABQADFVudXNlZCBDdXJ2ZQADjAEAAgAUAAxVbnVzZWQgQ3VydmUABEwBAAIAFAAMVW51c2VkIEN1cnZlAAU5AQACABQADFVudXNlZCBDdXJ2ZQAGTgEAAgAUAAxVbnVzZWQgQ3VydmUAByMBAAIAFAAMVW51c2VkIEN1cnZlAAgpAQACABQADFVudXNlZCBDdXJ2ZQAJYAEAAgCuAbgBAQECAZqZmZmZmak/AABmZmZmZmbuPwAABQABAQEAAQEBAA== | J36: 0 8 | K36: F1 0 1000 .95 | O36: 4 | P36: TRUE
A37: FIT_A614D_8B81B | B37: Tolkning 4 | C37: ='Restaurant, café'!$B$3:$B$29 ->  | D37: 0 | E37: F1 0 0 -1E+300 1E+300 1 0 3 0 1 1 18 BetaGeneral Binomial Expon ExtValue ExtValueMin Gamma Geomet IntUniform Laplace Logistic LogLogistic Lognorm NegBin Normal Poisson Triang Uniform Weibull 0 1 -1 1 0 1 0 0 0 | F37: GF1_rK0qDwEAEACzAQwjACYANABvAIMAhACSAKAAjQGvAakBKgD//wAAAAAAAQQAAAAAAAAAAAEdRml0IENvbXBhcmlzb24gZm9yIFRvbGtuaW5nIDQBGFJpc2tHYW1tYSg4LDM1Mjk7MywyNzIzKQEBEAACAAEKU3RhdGlzdGljcwMBAQD/AQEBAQEAAQEBAAQAAAABAQEBAQABAQEABAAAAAq/AAHOAADdAADzAAAJAQAfAQA1AQBLAQBhAQB3AQANAAVJbnB1dAAAJQEBAgANAAVHYW1tYQABLwEAAgAUAAxVbnVzZWQgQ3VydmUAAk8BAAIAFAAMVW51c2VkIEN1cnZlAAOMAQACABQADFVudXNlZCBDdXJ2ZQAETAEAAgAUAAxVbnVzZWQgQ3VydmUABTkBAAIAFAAMVW51c2VkIEN1cnZlAAZOAQACABQADFVudXNlZCBDdXJ2ZQAHIwEAAgAUAAxVbnVzZWQgQ3VydmUACCkBAAIAFAAMVW51c2VkIEN1cnZlAAlgAQACAJUBnwEBAQIBmpmZmZmZqT8AAGZmZmZmZu4/AAAFAAEBAQABAQEA | J37: 0 8 | K37: F1 0 1000 .95 | O37: 4 | P37: TRUE
A38: FIT_CD63F_165AA | B38: Respons 5 | C38: ='Restaurant, café'!$C$3:$C$29 ->  | D38: 0 | E38: F1 0 0 -1E+300 1E+300 1 0 3 0 1 1 18 BetaGeneral Binomial Expon ExtValue ExtValueMin Gamma Geomet IntUniform Laplace Logistic LogLogistic Lognorm NegBin Normal Poisson Triang Uniform Weibull 0 1 -1 1 0 1 0 0 0 | F38: GF1_rK0qDwEAEAC/AQwjACYANAB1AIkAigCYAKYAmQG7AbUBKgD//wAAAAAAAQQAAAAAAAAAAAEcRml0IENvbXBhcmlzb24gZm9yIFJlc3BvbnMgNQEfUmlza0xvZ2xvZ2lzdGljKDA7MjAsMDY1OzIsMTExKQEBEAACAAEKU3RhdGlzdGljcwMBAQD/AQEBAQEAAQEBAAQAAAABAQEBAQABAQEABAAAAArFAAHUAADpAAD/AAAVAQArAQBBAQBXAQBtAQCDAQANAAVJbnB1dAAAJQEBAgATAAtMb2dsb2dpc3RpYwABLwEAAgAUAAxVbnVzZWQgQ3VydmUAAk8BAAIAFAAMVW51c2VkIEN1cnZlAAOMAQACABQADFVudXNlZCBDdXJ2ZQAETAEAAgAUAAxVbnVzZWQgQ3VydmUABTkBAAIAFAAMVW51c2VkIEN1cnZlAAZOAQACABQADFVudXNlZCBDdXJ2ZQAHIwEAAgAUAAxVbnVzZWQgQ3VydmUACCkBAAIAFAAMVW51c2VkIEN1cnZlAAlgAQACAKEBqwEBAQIBmpmZmZmZqT8AAGZmZmZmZu4/AAAFAAEBAQABAQEA | J38: 0 8 | K38: F1 0 1000 .95 | O38: 4 | P38: TRUE
A39: FIT_61DEC_A10CB | B39: Tolkning 5 | C39: =Office!$B$3:$B$47 -> 34 | D39: 0 | E39: F1 0 0 -1E+300 1E+300 1 0 3 0 1 1 13 BetaGeneral Binomial ExtValue ExtValueMin Geomet IntUniform LogLogistic Lognorm NegBin Normal Poisson Triang Uniform 0 1 -1 1 0 1 0 0 0 | F39: GF1_rK0qDwEAEADBAQwjACYANAB3AIsAjACaAKgAmwG9AbcBKgD//wAAAAAAAQQAAAAAAAAAAAEdRml0IENvbXBhcmlzb24gZm9yIFRvbGtuaW5nIDUBIFJpc2tMb2dsb2dpc3RpYygwOzMzLDMxODsyLDk2MjQpAQEQAAIAAQpTdGF0aXN0aWNzAwEBAP8BAQEBAQABAQEABAAAAAEBAQEBAAEBAQAEAAAACscAAdYAAOsAAAEBABcBAC0BAEMBAFkBAG8BAIUBAA0ABUlucHV0AAAlAQECABMAC0xvZ2xvZ2lzdGljAAEvAQACABQADFVudXNlZCBDdXJ2ZQACTwEAAgAUAAxVbnVzZWQgQ3VydmUAA4wBAAIAFAAMVW51c2VkIEN1cnZlAARMAQACABQADFVudXNlZCBDdXJ2ZQAFOQEAAgAUAAxVbnVzZWQgQ3VydmUABk4BAAIAFAAMVW51c2VkIEN1cnZlAAcjAQACABQADFVudXNlZCBDdXJ2ZQAIKQEAAgAUAAxVbnVzZWQgQ3VydmUACWABAAIAowGtAQEBAgGamZmZmZmpPwAAZmZmZmZm7j8AAAUAAQEBAAEBAQA= | J39: 0 8 | K39: F1 0 1000 .95 | O39: 4 | P39: TRUE
A40: FIT_61F0C_8FB2 | B40: Förh. Första personen | C40: ='Cinema, voice alarm'!$F$3:$F$902 -> 0 | D40: 0 | E40: F1 0 0 -1E+300 1E+300 1 0 3 0 1 1 18 BetaGeneral Binomial Expon ExtValue ExtValueMin Gamma Geomet IntUniform Laplace Logistic LogLogistic Lognorm NegBin Normal Poisson Triang Uniform Weibull 0 1 -1 1 0 1 0 0 0 | F40: GF1_rK0qDwEADwDMAQwjACYANACEAJgAmQCnALUAqAHIAcIBKgD//wAAAAAAAQQAAAAAAAAAAAEqRml0IENvbXBhcmlzb24gZm9yIEbDtnJoLiBGw7Zyc3RhIHBlcnNvbmVuASBSaXNrTG9nbG9naXN0aWMoMDsyMCwzODE7Myw0MDM2KQEBEAACAAEKU3RhdGlzdGljcwMBAQD/AQEBAQEAAQEBAAQAAAABAQEBAQABAQEABAAAAArUAAHjAAD4AAAOAQAkAQA6AQBQAQBmAQB8AQCSAQANAAVJbnB1dAAAJQEBAgATAAtMb2dMb2dpc3RpYwABLwEAAgAUAAxVbnVzZWQgQ3VydmUAAk8BAAIAFAAMVW51c2VkIEN1cnZlAAOMAQACABQADFVudXNlZCBDdXJ2ZQAETAEAAgAUAAxVbnVzZWQgQ3VydmUABTkBAAIAFAAMVW51c2VkIEN1cnZlAAZOAQACABQADFVudXNlZCBDdXJ2ZQAHIwEAAgAUAAxVbnVzZWQgQ3VydmUACCkBAAIAFAAMVW51c2VkIEN1cnZlAAlgAQACALABuQEBAQIBAAAAAAAAEMABAAAAAAAA8H8BBQABAQEAAQEBAA== | J40: 0 8 | K40: F1 0 1000 .95 | O40: 4 | P40: TRUE
A41: FIT_8A88E_2EFBB | B41: Normerad förberedelsetid | C41: ='Cinema, siren'!$F$3:$F$91 -> 0 | D41: 0 | E41: F1 0 0 -1E+300 1E+300 1 0 3 0 1 1 18 BetaGeneral Binomial Expon ExtValue ExtValueMin Gamma Geomet IntUniform Laplace Logistic LogLogistic Lognorm NegBin Normal Poisson Triang Uniform Weibull 0 1 -1 1 0 1 0 0 0 | F41: GF1_rK0qDwEADwDXAQwjACYANAB+AJIAkwC2AMQAsQHTAc0BKgD//wAAAAAAAQQAAAAAAAAAAAEsRml0IENvbXBhcmlzb24gZm9yIE5vcm1lcmFkIGbDtnJiZXJlZGVsc2V0aWQBGFJpc2tHYW1tYSgzLDUzNTk7Myw1Mzk5KQEBEAACAAEKU3RhdGlzdGljcwMBAQD/AQEBAQEAAQAAAAAAAAAAAAAAAAAAAERAAQkAAAABAAQAAAABAQEBAQABAQEABAAAAArjAAHyAAABAQAXAQAtAQBDAQBZAQBvAQCFAQCbAQANAAVJbnB1dAAAJQEBAgANAAVHYW1tYQABLwEAAgAUAAxVbnVzZWQgQ3VydmUAAk8BAAIAFAAMVW51c2VkIEN1cnZlAAOMAQACABQADFVudXNlZCBDdXJ2ZQAETAEAAgAUAAxVbnVzZWQgQ3VydmUABTkBAAIAFAAMVW51c2VkIEN1cnZlAAZOAQACABQADFVudXNlZCBDdXJ2ZQAHIwEAAgAUAAxVbnVzZWQgQ3VydmUACCkBAAIAFAAMVW51c2VkIEN1cnZlAAlgAQACALkBwwEAAQIBmpmZmZmZqT8AAGZmZmZmZu4/AAAFAAEBAQABAQEA | J41: 0 8 | K41: F1 0 1000 .95 | O41: 4 | P41: TRUE
A42: FIT_C8A68_4177A | B42: Normerad | C42: ='Cinema, alarm bell'!$F$3:$F$888 -> 0 | D42: 0 | E42: F1 0 0 -1E+300 1E+300 1 0 3 0 1 1 18 BetaGeneral Binomial Expon ExtValue ExtValueMin Gamma Geomet IntUniform Laplace Logistic LogLogistic Lognorm NegBin Normal Poisson Triang Uniform Weibull 0 1 -1 1 0 1 0 0 0 | J42: 0 8 | K42: F1 0 1000 .95 | O42: 4 | P42: TRUE
A43: FIT_B22E6_8458 | B43: Normerad förb | C43: ='Cinema, siren'!$F$3:$F$94 -> 0 | D43: 0 | E43: F1 0 0 -1E+300 1E+300 1 0 3 0 1 1 18 BetaGeneral Binomial Expon ExtValue ExtValueMin Gamma Geomet IntUniform Laplace Logistic LogLogistic Lognorm NegBin Normal Poisson Triang Uniform Weibull 0 1 -1 1 0 1 0 0 0 | J43: 0 8 | K43: F1 0 1000 .95 | O43: 4 | P43: TRUE
A44: FIT_4A86B_62FB8 | B44: Normerad förberedelsetid 2 | C44: ='Restaurant, café'!$F$3:$F$29 ->  | D44: 0 | E44: F1 0 0 -1E+300 1E+300 1 0 3 0 1 1 18 BetaGeneral Binomial Expon ExtValue ExtValueMin Gamma Geomet IntUniform Laplace Logistic LogLogistic Lognorm NegBin Normal Poisson Triang Uniform Weibull 0 1 -1 1 0 1 0 0 0 | J44: 0 8 | K44: F1 0 1000 .95 | O44: 4 | P44: TRUE
A45: FIT_DA8DA_574B0 | B45: Normerad förberedelsetid 3 | C45: =School!$F$3:$F$74 -> 0 | D45: 0 | E45: F1 0 0 -1E+300 1E+300 1 0 3 0 1 1 18 BetaGeneral Binomial Expon ExtValue ExtValueMin Gamma Geomet IntUniform Laplace Logistic LogLogistic Lognorm NegBin Normal Poisson Triang Uniform Weibull 0 1 -1 1 0 1 0 0 0 | J45: 0 8 | K45: F1 0 1000 .95 | O45: 4 | P45: TRUE
A46: FIT_93624_A9487 | B46: Tolkning Biograf talat | C46: ='Cinema, voice alarm'!$B$3:$B$191 -> 14 | D46: 0 | E46: F1 0 0 -1E+300 1E+300 1 0 3 0 1 1 17 BetaGeneral Binomial ExtValue ExtValueMin Geomet IntUniform Kumaraswamy Laplace Logistic LogLogistic Lognorm NegBin Normal Poisson Reciprocal Triang Uniform 0 1 -1 1 0 1 0 0 0 | F46: GF1_rK0qDwEAEADNAQwjACYANACDAJcAmACmALQApwHJAcMBKgD//wAAAAAAAQQAAAAAAAAAAAEpRml0IENvbXBhcmlzb24gZm9yIFRvbGtuaW5nIEJpb2dyYWYgdGFsYXQBIFJpc2tMb2dsb2dpc3RpYygwOzMzLDExMzsyLDY3NjIpAQEQAAIAAQpTdGF0aXN0aWNzAwEBAP8BAQEBAQABAQEABAAAAAEBAQEBAAEBAQAEAAAACtMAAeIAAPcAAA0BACMBADkBAE8BAGUBAHsBAJEBAA0ABUlucHV0AAAlAQECABMAC0xvZ2xvZ2lzdGljAAEvAQACABQADFVudXNlZCBDdXJ2ZQACTwEAAgAUAAxVbnVzZWQgQ3VydmUAA4wBAAIAFAAMVW51c2VkIEN1cnZlAARMAQACABQADFVudXNlZCBDdXJ2ZQAFOQEAAgAUAAxVbnVzZWQgQ3VydmUABk4BAAIAFAAMVW51c2VkIEN1cnZlAAcjAQACABQADFVudXNlZCBDdXJ2ZQAIKQEAAgAUAAxVbnVzZWQgQ3VydmUACWABAAIArwG5AQEBAgGamZmZmZmpPwAAZmZmZmZm7j8AAAUAAQEBAAEBAQA= | J46: 0 8 | K46: F1 0 1000 .95 | O46: 4 | P46: TRUE
A47: FIT_8B87_D1B46 | B47: Dataset 2 | C47: =School!$C$3:$C$74 -> 38 | D47: 0 | E47: F4 1 0 0 -1E+300 1E+300 1 0 0 3 0 1 1 25 BetaGeneral Binomial Expon ExtValue ExtValueMin Gamma Geomet IntUniform InvGauss Kumaraswamy Laplace Levy Logistic LogLogistic Lognorm NegBin Normal Pareto Pearson5 Pearson6 Poisson Reciprocal Triang Uniform Weibull 0 0 1 -1 1 0 1 0 0 0 | J47: 0 8 | K47: F1 0 1000 .95 | M47: F2 0 1 1 1 | O47: 4 | P47: TRUE
A48: FIT_2F633_873F6 | B48: Respons 6 | C48: =Office!$C$3:$C$47 ->  | D48: 0 | E48: F1 0 0 -1E+300 1E+300 1 0 3 0 1 1 25 BetaGeneral Binomial Expon ExtValue ExtValueMin Gamma Geomet IntUniform InvGauss Kumaraswamy Laplace Levy Logistic LogLogistic Lognorm NegBin Normal Pareto Pearson5 Pearson6 Poisson Reciprocal Triang Uniform Weibull 0 1 -1 1 0 1 0 0 0 | F48: GF1_rK0qDwEAEACrAQwjACYANABnAHsAfACKAJgAhQGnAaEBKgD//wAAAAAAAQQAAAAAAAAAAAEcRml0IENvbXBhcmlzb24gZm9yIFJlc3BvbnMgNgERUmlza0V4cG9uKDIzLDc4NCkBARAAAgABClN0YXRpc3RpY3MDAQEA/wEBAQEBAAEBAQAEAAAAAQEBAQEAAQEBAAQAAAAKtwABxgAA1QAA6wAAAQEAFwEALQEAQwEAWQEAbwEADQAFSW5wdXQAACUBAQIADQAFRXhwb24AAS8BAAIAFAAMVW51c2VkIEN1cnZlAAJPAQACABQADFVudXNlZCBDdXJ2ZQADjAEAAgAUAAxVbnVzZWQgQ3VydmUABEwBAAIAFAAMVW51c2VkIEN1cnZlAAU5AQACABQADFVudXNlZCBDdXJ2ZQAGTgEAAgAUAAxVbnVzZWQgQ3VydmUAByMBAAIAFAAMVW51c2VkIEN1cnZlAAgpAQACABQADFVudXNlZCBDdXJ2ZQAJYAEAAgCNAZcBAQECAZqZmZmZmak/AABmZmZmZmbuPwAABQABAQEAAQEBAA== | J48: 0 8 | K48: F1 0 1000 .95 | O48: 4 | P48: TRUE
A49: FIT_44DC5_A76D | B49: Total förberedelse 5 | C49: =Office!$D$3:$D$47 ->  | D49: 0 | E49: F1 0 0 -1E+300 1E+300 1 0 3 0 1 1 25 BetaGeneral Binomial Expon ExtValue ExtValueMin Gamma Geomet IntUniform InvGauss Kumaraswamy Laplace Levy Logistic LogLogistic Lognorm NegBin Normal Pareto Pearson5 Pearson6 Poisson Reciprocal Triang Uniform Weibull 0 1 -1 1 0 1 0 0 0 | F49: GF1_rK0qDwEAEADMAQwjACYANACCAJYAlwClALMApgHIAcIBKgD//wAAAAAAAQQAAAAAAAAAAAEoRml0IENvbXBhcmlzb24gZm9yIFRvdGFsIGbDtnJiZXJlZGVsc2UgNQEgUmlza0xvZ2xvZ2lzdGljKDA7NTIsNTM5OzIsOTc5MykBARAAAgABClN0YXRpc3RpY3MDAQEA/wEBAQEBAAEBAQAEAAAAAQEBAQEAAQEBAAQAAAAK0gAB4QAA9gAADAEAIgEAOAEATgEAZAEAegEAkAEADQAFSW5wdXQAACUBAQIAEwALTG9nbG9naXN0aWMAAS8BAAIAFAAMVW51c2VkIEN1cnZlAAJPAQACABQADFVudXNlZCBDdXJ2ZQADjAEAAgAUAAxVbnVzZWQgQ3VydmUABEwBAAIAFAAMVW51c2VkIEN1cnZlAAU5AQACABQADFVudXNlZCBDdXJ2ZQAGTgEAAgAUAAxVbnVzZWQgQ3VydmUAByMBAAIAFAAMVW51c2VkIEN1cnZlAAgpAQACABQADFVudXNlZCBDdXJ2ZQAJYAEAAgCuAbgBAQECAZqZmZmZmak/AABmZmZmZmbuPwAABQABAQEAAQEBAA== | J49: 0 8 | K49: F1 0 1000 .95 | O49: 4 | P49: TRUE
A50: FIT_39C56_EB920 | B50: Individ | C50: ='Cinema, voice alarm'!$A$3:$B$902 ->  | D50: 0 | E50: F1 0 0 -1E+300 1E+300 1 0 3 0 1 1 25 BetaGeneral Binomial Expon ExtValue ExtValueMin Gamma Geomet IntUniform InvGauss Kumaraswamy Laplace Levy Logistic LogLogistic Lognorm NegBin Normal Pareto Pearson5 Pearson6 Poisson Reciprocal Triang Uniform Weibull 0 1 -1 1 0 1 0 0 0 | F50: GF1_rK0qDwEAEAC+AQwjACYANAB0AIgAiQCXAKUAmAG6AbQBKgD//wAAAAAAAQQAAAAAAAAAAAEaRml0IENvbXBhcmlzb24gZm9yIEluZGl2aWQBIFJpc2tMb2dsb2dpc3RpYygwOzI1LDU3MTs1LDMxMTEpAQEQAAIAAQpTdGF0aXN0aWNzAwEBAP8BAQEBAQABAQEABAAAAAEBAQEBAAEBAQAEAAAACsQAAdMAAOgAAP4AABQBACoBAEABAFYBAGwBAIIBAA0ABUlucHV0AAAlAQECABMAC0xvZ2xvZ2lzdGljAAEvAQACABQADFVudXNlZCBDdXJ2ZQACTwEAAgAUAAxVbnVzZWQgQ3VydmUAA4wBAAIAFAAMVW51c2VkIEN1cnZlAARMAQACABQADFVudXNlZCBDdXJ2ZQAFOQEAAgAUAAxVbnVzZWQgQ3VydmUABk4BAAIAFAAMVW51c2VkIEN1cnZlAAcjAQACABQADFVudXNlZCBDdXJ2ZQAIKQEAAgAUAAxVbnVzZWQgQ3VydmUACWABAAIAoAGqAQEBAgGamZmZmZmpPwAAZmZmZmZm7j8AAAUAAQEBAAEBAQA= | J50: 0 8 | K50: F1 0 1000 .95 | O50: 0 | P50: TRUE

Sheet Night club, passive staff
A1: Nightclub - Passive staff
A2: Individual | B2: Pre-movement time
A3: Person 1 | B3: 74
A4: Person 2 | B4: 417
A5: Person 3 | B5: 66
A6: Person 4 | B6: 57
A7: Person 5 | B7: 80
A8: Person 6 | B8: 80
A9: Person 7 | B9: 71
A10: Person 8 | B10: 60
A11: Person 9 | B11: 71
A12: Person 10 | B12: 65
A13: Person 11 | B13: 114
A14: Person 12 | B14: 327
A15: Person 13 | B15: 327
A16: Person 14 | B16: 13
A17: Person 15 | B17: 30
A18: Person 16 | B18: 25
A19: Person 17 | B19: 25
A20: Person 18 | B20: 25
A21: Person 19 | B21: 20
A22: Person 20 | B22: 63
A23: Person 21 | B23: 61
A24: Person 22 | B24: 34
A25: Person 23 | B25: 28
A26: Person 24 | B26: 63
A27: Person 25 | B27: 63
A28: Person 26 | B28: 63
A29: Person 27 | B29: 70
A30: Person 28 | B30: 69
A31: Person 29 | B31: 66
A32: Person 30 | B32: 39
A33: Person 31 | B33: 39
A34: Person 32 | B34: 39
A35: Person 33 | B35: 8
A36: Person 34 | B36: 15
A37: Person 35 | B37: 34
A38: Person 36 | B38: 55
A39: Person 37 | B39: 52
A40: Person 38 | B40: 67
A41: Person 39 | B41: 41
A42: Person 40 | B42: 39
A43: Person 41 | B43: 86
A44: Person 42 | B44: 57
A45: Person 43 | B45: 53
A46: Person 44 | B46: 65
A47: Person 45 | B47: 40
A48: Person 46 | B48: 79
A49: Person 47 | B49: 79
A50: Person 48 | B50: 103
A51: Person 49 | B51: 103
A52: Person 50 | B52: 16
A53: Person 51 | B53: 16
A54: Person 52 | B54: 56
A55: Person 53 | B55: 56
A56: Person 54 | B56: 19
A57: Person 55 | B57: 52
A58: Person 56 | B58: 58
A59: Person 57 | B59: 58
A60: Person 58 | B60: 144
A61: Person 59 | B61: 105
A62: Person 60 | B62: 119
A63: Person 61 | B63: 56
A64: Person 62 | B64: 93
A65: Person 63 | B65: 92
A66: Person 64 | B66: 83
A67: Person 65 | B67: 83
A68: Person 66 | B68: 62
A69: Person 67 | B69: 62
A70: Person 68 | B70: 55
A71: Person 69 | B71: 25
A72: Person 70 | B72: 25
A73: Person 71 | B73: 11
A74: Person 72 | B74: 11
A75: Person 73 | B75: 89
A76: Person 74 | B76: 90
A77: Person 75 | B77: 83
A78: Person 76 | B78: 38
A79: Person 77 | B79: 5
A80: Person 78 | B80: 38
A81: Person 79 | B81: 10
A82: Person 80 | B82: 36
A83: Person 81 | B83: 14
A84: Person 82 | B84: 19
A85: Person 83 | B85: 11
A86: Person 84 | B86: 86

Sheet Department store
A1: Department store - Voice alarm
A2: Individual | B2: Recognition | C2: Response | D2: Total pre-movement time
A3: Person 1 | B3: 23 | C3: 2 | D3: 25
A4: Person 2 | B4: 24 | C4: 1 | D4: 25
A5: Person 3 | B5: 25 | C5: 13 | D5: 38
A6: Person 4 | B6: 24 | C6: 14 | D6: 38
A7: Person 5 | B7: 44 | C7: 8 | D7: 52
A8: Person 6 | B8: 23 | C8: 24 | D8: 47
A9: Person 7 | B9: 54 | C9: 2 | D9: 56
A10: Person 8 | B10: 23 | C10: 14 | D10: 37
A11: Person 9 | B11: 23 | C11: 28 | D11: 51
A12: Person 10 | B12: 49 | C12: 6 | D12: 55
A13: Person 11 | B13: 22 | C13: 2 | D13: 24
A14: Person 12 | B14: 38 | C14: 30 | D14: 68
A15: Person 13 | B15: 29 | C15: 28 | D15: 57
A16: Person 14 | B16: 23 | C16: 7 | D16: 30
A17: Person 15 | B17: 30 | C17: 5 | D17: 35
A18: Person 16 | B18: 25 | C18: 9 | D18: 34
A19: Person 17 | B19: 28 | C19: 6 | D19: 34
A20: Person 18 | B20: 25 | C20: 22 | D20: 47
A21: Person 19 | B21: 26 | C21: 16 | D21: 42
A22: Person 20 | B22: 49 | C22: 3 | D22: 52
A23: Person 21 | B23: 46 | C23: 1 | D23: 47
A24: Person 22 | B24: 22 | C24: 24 | D24: 46
A25: Person 23 | B25: 22 | C25: 25 | D25: 47
A26: Person 24 | B26: 22 | C26: 1 | D26: 23
A27: Person 25 | B27: 24 | C27: 12 | D27: 36
A28: Person 26 | B28: 21 | C28: 14 | D28: 35
A29: Person 27 | B29: 64 | C29: 5 | D29: 69
A30: Person 28 | B30: 37 | C30: 6 | D30: 43
A31: Person 29 | B31: 54 | C31: 14 | D31: 68
A32: Person 30 | B32: 29 | C32: 41 | D32: 70
A33: Person 31 | B33: 30 | C33: 1 | D33: 31
A34: Person 32 | B34: 22 | C34: 8 | D34: 30
A35: Person 33 | B35: 22 | C35: 8 | D35: 30
A36: Person 34 | B36: 24 | C36: 9 | D36: 33
A37: Person 35 | B37: 56 | C37: 17 | D37: 73
A38: Person 36 | B38: 48 | C38: 23 | D38: 71
A39: Person 37 | B39: 28 | C39: 2 | D39: 30
A40: Person 38 | B40: 28 | C40: 1 | D40: 29
A41: Person 39 | B41: 27 | C41: 2 | D41: 29
A42: Person 40 | B42: 27 | C42: 3 | D42: 30
A43: Person 41 | B43: 33 | C43: 40 | D43: 73
A44: Person 42 | B44: 23 | C44: 8 | D44: 31
A45: Person 43 | B45: 32 | C45: 31 | D45: 63
A46: Person 44 | B46: 40 | C46: 20 | D46: 60
A47: Person 45 | B47: 40 | C47: 20 | D47: 60
A48: Person 46 | B48: 56 | C48: 9 | D48: 65
A49: Person 47 | B49: 57 | C49: 9 | D49: 66
A50: Person 48 | B50: 21 | C50: 15 | D50: 36
A51: Person 49 | B51: 22 | C51: 5 | D51: 27
A52: Person 50 | B52: 25 | C52: 2 | D52: 27
A53: Person 51 | B53: 28 | C53: 7 | D53: 35
A54: Person 52 | B54: 28 | C54: 8 | D54: 36
A55: Person 53 | B55: 26 | C55: 10 | D55: 36
A56: Person 54 | B56: 21 | C56: 17 | D56: 38
A57: Person 55 | B57: 21 | C57: 17 | D57: 38
A58: Person 56 | B58: 32 | C58: 32 | D58: 64
A59: Person 57 | B59: 33 | C59: 2 | D59: 35
A60: Person 58 | B60: 37 | C60: 20 | D60: 57
A61: Person 59 | B61: 60 | C61: 10 | D61: 70
A62: Person 60 | B62: 24 | C62: 1 | D62: 25
A63: Person 61 | B63: 20 | C63: 2 | D63: 22
A64: Person 62 | B64: 34 | C64: 1 | D64: 35
A65: Person 63 | B65: 33 | C65: 1 | D65: 34
A66: Person 64 | B66: 33 | C66: 3 | D66: 36
A67: Person 65 | B67: 26 | C67: 8 | D67: 34
A68: Person 66 | B68: 32 | C68: 7 | D68: 39
A69: Person 67 | B69: 19 | C69: 4 | D69: 23
A70: Person 68 | B70: 45 | C70: 1 | D70: 46
A71: Person 69 | B71: 32 | C71: 8 | D71: 40
A72: Person 70 | B72: 18 | C72: 11 | D72: 29
A73: Person 71 | B73: 22 | C73: 12 | D73: 34
A74: Person 72 | B74: 25 | C74: 2 | D74: 27
A75: Person 73 | B75: 48 | C75: 1 | D75: 49
A76: Person 74 | B76: 22 | C76: 1 | D76: 23
A77: Person 75 | B77: 22 | C77: 4 | D77: 26
A78: Person 76 | B78: 37 | C78: 15 | D78: 52
A79: Person 77 | B79: 36 | C79: 7 | D79: 43
A80: Person 78 | B80: 34 | C80: 10 | D80: 44
A81: Person 79 | B81: 36 | C81: 4 | D81: 40
A82: Person 80 | B82: 34 | C82: 3 | D82: 37
A83: Person 81 | B83: 43 | C83: 3 | D83: 46
A84: Person 82 | B84: 40 | C84: 3 | D84: 43
A85: Person 83 | B85: 31 | C85: 1 | D85: 32
A86: Person 84 | B86: 26 | C86: 16 | D86: 42
A87: Person 85 | B87: 36 | C87: 14 | D87: 50
A88: Person 86 | B88: 33 | C88: 10 | D88: 43
A89: Person 87 | B89: 26 | C89: 1 | D89: 27
A90: Person 88 | B90: 26 | C90: 1 | D90: 27
A91: Person 89 | B91: 39 | C91: 10 | D91: 49
A92: Person 90 | B92: 39 | C92: 10 | D92: 49
A93: Person 91 | B93: 38 | C93: 6 | D93: 44
A94: Person 92 | B94: 32 | C94: 1 | D94: 33
A95: Person 93 | B95: 29 | C95: 1 | D95: 30
A96: Person 94 | B96: 29 | C96: 2 | D96: 31
A97: Person 95 | B97: 42 | C97: 2 | D97: 44
A98: Person 96 | B98: 42 | C98: 2 | D98: 44
A99: Person 97 | B99: 31 | C99: 12 | D99: 43
A100: Person 98 | B100: 31 | C100: 11 | D100: 42
A101: Person 99 | B101: 31 | C101: 11 | D101: 42
A102: Person 100 | B102: 28 | C102: 38 | D102: 66
A103: Person 101 | B103: 25 | C103: 2 | D103: 27
A104: Person 102 | B104: 14 | C104: 10 | D104: 24
A105: Person 103 | B105: 14 | C105: 3 | D105: 17
A106: Person 104 | B106: 14 | C106: 3 | D106: 17
A107: Person 105 | B107: 20 | C107: 6 | D107: 26
A108: Person 106 | B108: 14 | C108: 19 | D108: 33
A109: Person 107 | B109: 14 | C109: 19 | D109: 33
A110: Person 108 | B110: 13 | C110: 3 | D110: 16
A111: Person 109 | B111: 21 | C111: 23 | D111: 44
A112: Person 110 | B112: 21 | C112: 6 | D112: 27
A113: Person 111 | B113: 24 | C113: 4 | D113: 28
A114: Person 112 | B114: 34 | C114: 3 | D114: 37
A115: Person 113 | B115: 35 | C115: 26 | D115: 61
A116: Person 114 | B116: 35 | C116: 26 | D116: 61
A117: Person 115 | B117: 27 | C117: 36 | D117: 63
A118: Person 116 | B118: 58 | C118: 5 | D118: 63
A119: Person 117 | B119: 14 | C119: 1 | D119: 15
A120: Person 118 | B120: 14 | C120: 1 | D120: 15
A121: Person 119 | B121: 16 | C121: 2 | D121: 18
A122: Person 120 | B122: 10 | C122: 2 | D122: 12
A123: Person 121 | B123: 30 | C123: 17 | D123: 47
A124: Person 122 | B124: 33 | C124: 14 | D124: 47
A125: Person 123 | B125: 33 | C125: 14 | D125: 47
A126: Person 124 | B126: 14 | C126: 1 | D126: 15
A127: Person 125 | B127: 15 | C127: 17 | D127: 32
A128: Person 126 | B128: 15 | C128: 17 | D128: 32
A129: Person 127 | B129: 4 | C129: 1 | D129: 5
A130: Person 128 | B130: 25 | C130: 20 | D130: 45
A131: Person 129 | B131: 20 | C131: 6 | D131: 26
A132: Person 130 | B132: 16 | C132: 60 | D132: 76
A133: Person 131 | B133: 17 | C133: 1 | D133: 18
A134: Person 132 | B134: 34 | C134: 14 | D134: 48
A135: Person 133 | B135: 18 | C135: 36 | D135: 54
A136: Person 134 | B136: 18 | C136: 36 | D136: 54
A137: Person 135 | B137: 18 | C137: 36 | D137: 54
A138: Person 136 | B138: 15 | C138: 9 | D138: 24
A139: Person 137 | B139: 24 | C139: 36 | D139: 60
A140: Person 138 | B140: 28 | C140: 1 | D140: 29
A141: Person 139 | B141: 28 | C141: 1 | D141: 29
A142: Person 140 | B142: 14 | C142: 21 | D142: 35
A143: Person 141 | B143: 17 | C143: 1 | D143: 18
A144: Person 142 | B144: 16 | C144: 1 | D144: 17
A145: Person 143 | B145: 15 | C145: 11 | D145: 26
A146: Person 144 | B146: 17 | C146: 10 | D146: 27
A147: Person 145 | B147: 28 | C147: 20 | D147: 48
A148: Person 146 | B148: 28 | C148: 20 | D148: 48
A149: Person 147 | B149: 19 | C149: 1 | D149: 20
A150: Person 148 | B150: 19 | C150: 1 | D150: 20
A151: Person 149 | B151: 28 | C151: 2 | D151: 30
A152: Person 150 | B152: 28 | C152: 2 | D152: 30
A153: Person 151 | B153: 28 | C153: 2 | D153: 30
A154: Person 152 | B154: 26 | C154: 8 | D154: 34
A155: Person 153 | B155: 25 | C155: 1 | D155: 26
A156: Person 154 | B156: 25 | C156: 1 | D156: 26
A157: Person 155 | B157: 27 | C157: 3 | D157: 30
A158: Person 156 | B158: 19 | C158: 1 | D158: 20
A159: Person 157 | B159: 19 | C159: 1 | D159: 20
A160: Person 158 | B160: 19 | C160: 1 | D160: 20
A161: Person 159 | B161: 20 | C161: 2 | D161: 22
A162: Person 160 | B162: 19 | C162: 2 | D162: 21
A163: Person 161 | B163: 17 | C163: 1 | D163: 18
A164: Person 162 | B164: 19 | C164: 10 | D164: 29
A165: Person 163 | B165: 22 | C165: 8 | D165: 30
A166: Person 164 | B166: 24 | C166: 7 | D166: 31
A167: Person 165 | B167: 17 | C167: 1 | D167: 18
A168: Person 166 | B168: 17 | C168: 5 | D168: 22
A169: Person 167 | B169: 16 | C169: 4 | D169: 20
A170: Person 168 | B170: 17 | C170: 37 | D170: 54
A171: Person 169 | B171: 17 | C171: 30 | D171: 47
A172: Person 170 | B172: 17 | C172: 30 | D172: 47
A173: Person 171 | B173: 17 | C173: 30 | D173: 47
A174: Person 172 | B174: 20 | C174: 6 | D174: 26
A175: Person 173 | B175: 20 | C175: 3 | D175: 23
A176: Person 174 | B176: 20 | C176: 4 | D176: 24
A177: Person 175 | B177: 17 | C177: 21 | D177: 38
A178: Person 176 | B178: 16 | C178: 3 | D178: 19
A179: Person 177 | B179: 21 | C179: 4 | D179: 25
A180: Person 178 | B180: 21 | C180: 4 | D180: 25
A181: Person 179 | B181: 21 | C181: 4 | D181: 25
A182: Person 180 | B182: 21 | C182: 4 | D182: 25
A183: Person 181 | B183: 14 | C183: 3 | D183: 17
A184: Person 182 | B184: 13 | C184: 1 | D184: 14
A185: Person 183 | B185: 13 | C185: 4 | D185: 17
A186: Person 184 | B186: 14 | C186: 1 | D186: 15
A187: Person 185 | B187: 13 | C187: 1 | D187: 14
A188: Person 186 | B188: 16 | C188: 2 | D188: 18
A189: Person 187 | B189: 14 | C189: 1 | D189: 15
A190: Person 188 | B190: 13 | C190: 2 | D190: 15
A191: Person 189 | B191: 14 | C191: 1 | D191: 15
A192: Person 190 | B192: 32 | C192: 9 | D192: 41
A193: Person 191 | B193: 15 | C193: 6 | D193: 21
A194: Person 192 | B194: 15 | C194: 2 | D194: 17
A195: Person 193 | B195: 14 | C195: 1 | D195: 15
A196: Person 194 | B196: 14 | C196: 5 | D196: 19
A197: Person 195 | B197: 15 | C197: 1 | D197: 16
A198: Person 196 | B198: 15 | C198: 1 | D198: 16
A199: Person 197 | B199: 19 | C199: 1 | D199: 20
A200: Person 198 | B200: 14 | C200: 1 | D200: 15
... 31 more rows

Sheet Restaurant, café
A1: Restaurant/Café - Voice alarm
A2: Individual | B2: Recognition | C2: Response | D2: Total pre-movement time
A3: Person 1 | B3: 22 | C3: 7 | D3: 29
A4: Person 2 | B4: 28 | C4: 14 | D4: 42
A5: Person 3 | B5: 28 | C5: 14 | D5: 42
A6: Person 4 | B6: 31 | C6: 7 | D6: 38
A7: Person 5 | B7: 33 | C7: 6 | D7: 39
A8: Person 6 | B8: 16 | C8: 30 | D8: 46
A9: Person 7 | B9: 28 | C9: 26 | D9: 54
A10: Person 8 | B10: 26 | C10: 6 | D10: 32
A11: Person 9 | B11: 49 | C11: 8 | D11: 57
A12: Person 10 | B12: 35 | C12: 23 | D12: 58
A13: Person 11 | B13: 35 | C13: 24 | D13: 59
A14: Person 12 | B14: 16 | C14: 70 | D14: 86
A15: Person 13 | B15: 18 | C15: 54 | D15: 72
A16: Person 14 | B16: 17 | C16: 56 | D16: 73
A17: Person 15 | B17: 14 | C17: 38 | D17: 52
A18: Person 16 | B18: 13 | C18: 36 | D18: 49
A19: Person 17 | B19: 27 | C19: 48 | D19: 75
A20: Person 18 | B20: 18 | C20: 2 | D20: 20
A21: Person 19 | B21: 56 | C21: 18 | D21: 74
A22: Person 20 | B22: 24 | C22: 20 | D22: 44
A23: Person 21 | B23: 22 | C23: 44 | D23: 66
A24: Person 22 | B24: 30 | C24: 36 | D24: 66
A25: Person 23 | B25: 30 | C25: 11 | D25: 41
A26: Person 24 | B26: 32 | C26: 24 | D26: 56
A27: Person 25 | B27: 32 | C27: 24 | D27: 56
A28: Person 26 | B28: 24 | C28: 21 | D28: 45
A29: Person 27 | B29: 34 | C29: 12 | D29: 46
